Body,Body Name,Date,Transaction Number,Invoice Number,Amount,Supplier Name,Supplier ID ,VAT Registration Number ,Expense Area,Expense Type,Expense Code,Purchase Order
http://statistics.data.gov.uk/id/local-authority/29UP,Tonbridge & Malling Borough Council,5/3/2023,0011045972/3,11045972, 1852.50,Stuart Page Architect,01895200,,Payment re Prev Yrs Cred Acc,Sundry Creditors Admin & Prop,J80TA000001101,
http://statistics.data.gov.uk/id/local-authority/29UP,Tonbridge & Malling Borough Council,5/3/2023,0011045976/1,11045976, 400.00,JB Carpentry - J Baker,01878900,,BRREP Window/door repairs,Tonbridge Cemetery,M15HJP20001919,110070143
http://statistics.data.gov.uk/id/local-authority/29UP,Tonbridge & Malling Borough Council,5/3/2023,0011045977/1,11045977, 300.00,JB Carpentry - J Baker,01878900,,BRREP Window/door repairs,Tonbridge Castle / CAB,M15KFP20001919,110070075
http://statistics.data.gov.uk/id/local-authority/29UP,Tonbridge & Malling Borough Council,5/3/2023,0011046003/3,11046003, 24.15,Oasis Group  - Box-It South East,00966800,931579211,Purchases,Electoral Registration,D31MF000040101,
http://statistics.data.gov.uk/id/local-authority/29UP,Tonbridge & Malling Borough Council,5/3/2023,0011046034/1,11046034, 600.00,JB Carpentry - J Baker,01878900,,BRREP Window/door repairs,Leis Man Poult Wood Golf Centr,M15HEP20001919,110070076
http://statistics.data.gov.uk/id/local-authority/29UP,Tonbridge & Malling Borough Council,5/3/2023,0011046052/1,11046052, 589.41,KH Recruitment Ltd,01738900,,Temporary Staff,Personnel Sals&Overheads,D01ABDB0311300,
http://statistics.data.gov.uk/id/local-authority/29UP,Tonbridge & Malling Borough Council,5/3/2023,0011046053/1,11046053, 1217.80,Sellick Partnership Group Limited,01336800,,Temporary Staff,Legal Sals&Overheads,D01ARDR0011300,
http://statistics.data.gov.uk/id/local-authority/29UP,Tonbridge & Malling Borough Council,5/3/2023,0011046054/1,11046054, 1938.00,Thomson Snell & Passmore,00101700,,Legal Fees,Legal Sals&Overheads,D01ARDR0044002,
http://statistics.data.gov.uk/id/local-authority/29UP,Tonbridge & Malling Borough Council,5/3/2023,0011046055/1,11046055, 3680.00,District Councils' Network,01266300,,Subscriptions,Committee Administration,D29LL000047002,
http://statistics.data.gov.uk/id/local-authority/29UP,Tonbridge & Malling Borough Council,5/3/2023,0011046056/1,11046056, 534.25,KCS - KCC,00054200,,Estate Management Charge,Land Review,D40PS000020400,
http://statistics.data.gov.uk/id/local-authority/29UP,Tonbridge & Malling Borough Council,5/3/2023,0011046057/1,11046057, 1886.20,Royal Mail,00086200,,Purchases,Mailsort Stock Account,K37BR000001002,
http://statistics.data.gov.uk/id/local-authority/29UP,Tonbridge & Malling Borough Council,5/3/2023,0011046057/2,11046057, 2.10,Royal Mail,00086200,,Purchases,Mailsort Stock Account,K37BR000001002,
http://statistics.data.gov.uk/id/local-authority/29UP,Tonbridge & Malling Borough Council,5/3/2023,0011046058/1,11046058, 419.17,Scottish Water Business Stream Ltd,01641100,,Sewerage Charges,Buildings,D21FEDD1024003,
http://statistics.data.gov.uk/id/local-authority/29UP,Tonbridge & Malling Borough Council,5/3/2023,0011046059/1,11046059, 1211.40,The Oyster Partnership,01196400,,Temporary Staff,Admin & Prop Sals&Overheads,D01AADA1111300,
http://statistics.data.gov.uk/id/local-authority/29UP,Tonbridge & Malling Borough Council,5/3/2023,0011046060/1,11046060, 138.00,K T Fire Protection Ltd,00057000,,Payment re Prev Yrs Cred Acc,Sundry Creditors Admin & Prop,J80TA000001101,
http://statistics.data.gov.uk/id/local-authority/29UP,Tonbridge & Malling Borough Council,5/3/2023,0011046061/1,11046061, 138.00,K T Fire Protection Ltd,00057000,,Payment re Prev Yrs Cred Acc,Sundry Creditors Admin & Prop,J80TA000001101,
http://statistics.data.gov.uk/id/local-authority/29UP,Tonbridge & Malling Borough Council,5/3/2023,0011046062/1,11046062, 68.00,K T Fire Protection Ltd,00057000,,Payment re Prev Yrs Cred Acc,Sundry Creditors Admin & Prop,J80TA000001101,
http://statistics.data.gov.uk/id/local-authority/29UP,Tonbridge & Malling Borough Council,5/3/2023,0011046063/1,11046063, 113.50,K T Fire Protection Ltd,00057000,,Payment re Prev Yrs Cred Acc,Sundry Creditors Admin & Prop,J80TA000001101,
http://statistics.data.gov.uk/id/local-authority/29UP,Tonbridge & Malling Borough Council,5/3/2023,0011046064/1,11046064, 195.70,K T Fire Protection Ltd,00057000,,Payment re Prev Yrs Cred Acc,Sundry Creditors Admin & Prop,J80TA000001101,
http://statistics.data.gov.uk/id/local-authority/29UP,Tonbridge & Malling Borough Council,5/3/2023,0011046065/1,11046065, 185.00,K T Fire Protection Ltd,00057000,,Payment re Prev Yrs Cred Acc,Sundry Creditors Admin & Prop,J80TA000001101,
http://statistics.data.gov.uk/id/local-authority/29UP,Tonbridge & Malling Borough Council,5/3/2023,0011046066/1,11046066, 226.38,Royal British Legion Industries Ltd,00139700,,Purchases,Conduct of Elections,D31MG000040101,110070182
http://statistics.data.gov.uk/id/local-authority/29UP,Tonbridge & Malling Borough Council,5/3/2023,0011046067/1,11046067, 17717.50,Coolburn Air Conditioning Ltd,01137900,,BRREP Servicing - air handling,Larkfield Leisure Centre,M15HDP20001936,110070137
http://statistics.data.gov.uk/id/local-authority/29UP,Tonbridge & Malling Borough Council,5/3/2023,0011046068/1,11046068, 440.00,G C Industrial Heating Services,00578100,,BRREP Servicing - Heating Syst,Gibson Building West,M15KBP20001934,110070187
http://statistics.data.gov.uk/id/local-authority/29UP,Tonbridge & Malling Borough Council,5/3/2023,0011046069/1,11046069, 3500.00,G Baker Roofing Ltd,01664400,522705274,BRREP Response - General,Gibson Building East,M15KGP50001997,110070169
http://statistics.data.gov.uk/id/local-authority/29UP,Tonbridge & Malling Borough Council,5/3/2023,0011046070/1,11046070, 1307.00,KM Media Group Ltd,00053900,,Marketing,Information & Publicity,D32MJ000044215,110070115
http://statistics.data.gov.uk/id/local-authority/29UP,Tonbridge & Malling Borough Council,5/3/2023,0011046071/1,11046071, 342.72,KM Media Group Ltd,00053900,,Advertising General,Local Revenue & NNDR Collect,D41QAZ99944216,110070082
http://statistics.data.gov.uk/id/local-authority/29UP,Tonbridge & Malling Borough Council,5/3/2023,0011046072/1,11046072, 327.00,KM Media Group Ltd,00053900,,Marketing,Information & Publicity,D32MJ000044215,
http://statistics.data.gov.uk/id/local-authority/29UP,Tonbridge & Malling Borough Council,5/3/2023,0011046073/1,11046073, 134.31,KM Media Group Ltd,00053900,,Advertising General,Licences - Fee Paying,H27SHZ99944216,110070184
http://statistics.data.gov.uk/id/local-authority/29UP,Tonbridge & Malling Borough Council,5/3/2023,0012008717/1,12008717, 364.10,KCS - KCC,00054200,,Software Hire & Support,Information Technology,D27KD000044059,
http://statistics.data.gov.uk/id/local-authority/29UP,Tonbridge & Malling Borough Council,5/3/2023,0012008717/2,12008717, 59.70,KCS - KCC,00054200,,Software Hire & Support,Information Technology,D27KD000044059,
http://statistics.data.gov.uk/id/local-authority/29UP,Tonbridge & Malling Borough Council,5/3/2023,0012008718/1,12008718, 16.04,Esendex Limited,01008900,,Leased Lines & Modems,Information Technology,D27KD000045011,
http://statistics.data.gov.uk/id/local-authority/29UP,Tonbridge & Malling Borough Council,5/3/2023,0012008720/1,12008720, 79.90,CCS Media Ltd,00018000,,Purchases,Information Technology,D27KD000040101,410032403
http://statistics.data.gov.uk/id/local-authority/29UP,Tonbridge & Malling Borough Council,5/3/2023,0012008720/2,12008720, 2.00,CCS Media Ltd,00018000,,Delivery Expenses,Information Technology,D27KD000044069,410032403
http://statistics.data.gov.uk/id/local-authority/29UP,Tonbridge & Malling Borough Council,5/3/2023,0021038538/1,21038538, 2000.00,Tonbridge Lions Club,01291000,,Events Support,Events Development,B41TJ000044041,
http://statistics.data.gov.uk/id/local-authority/29UP,Tonbridge & Malling Borough Council,5/3/2023,0021038539/3,21038539, 339.49,Amazon EU SARL,01738400,,Events Support,Events Development,B41TJ000044041,
http://statistics.data.gov.uk/id/local-authority/29UP,Tonbridge & Malling Borough Council,5/3/2023,0021038540/1,21038540, 23754.66,Landscape Services Ltd,00057600,,Grounds Maintenance Contract,Sports Grounds,B13ET000050103,
http://statistics.data.gov.uk/id/local-authority/29UP,Tonbridge & Malling Borough Council,5/3/2023,0021038540/10,21038540, 173.66,Landscape Services Ltd,00057600,,Grounds Maintenance Contract,Churchyards St Stephens,B28MY000050103,
http://statistics.data.gov.uk/id/local-authority/29UP,Tonbridge & Malling Borough Council,5/3/2023,0021038540/11,21038540, 191.95,Landscape Services Ltd,00057600,,Grounds Maintenance Contract,Grounds,D21FF000050103,
http://statistics.data.gov.uk/id/local-authority/29UP,Tonbridge & Malling Borough Council,5/3/2023,0021038540/12,21038540, 364.05,Landscape Services Ltd,00057600,,Maintenance of Grounds,Parking Off-Street,E10HA000020402,
http://statistics.data.gov.uk/id/local-authority/29UP,Tonbridge & Malling Borough Council,5/3/2023,0021038540/13,21038540, 1141.69,Landscape Services Ltd,00057600,,Maintenance of Grounds,Parking Off-Street,E10HAE00120402,
http://statistics.data.gov.uk/id/local-authority/29UP,Tonbridge & Malling Borough Council,5/3/2023,0021038540/14,21038540, 108.41,Landscape Services Ltd,00057600,,Maintenance of Grounds,Parking Off-Street,E10HAE00220402,
http://statistics.data.gov.uk/id/local-authority/29UP,Tonbridge & Malling Borough Council,5/3/2023,0021038540/15,21038540, 98.31,Landscape Services Ltd,00057600,,Maintenance of Grounds,Parking Off-Street,E10HAE00320402,
http://statistics.data.gov.uk/id/local-authority/29UP,Tonbridge & Malling Borough Council,5/3/2023,0021038540/16,21038540, 24.52,Landscape Services Ltd,00057600,,Maintenance of Grounds,Parking Off-Street,E10HAE00420402,
http://statistics.data.gov.uk/id/local-authority/29UP,Tonbridge & Malling Borough Council,5/3/2023,0021038540/17,21038540, 0.63,Landscape Services Ltd,00057600,,Maintenance of Grounds,Parking Off-Street,E10HAE00520402,
http://statistics.data.gov.uk/id/local-authority/29UP,Tonbridge & Malling Borough Council,5/3/2023,0021038540/18,21038540, 68.63,Landscape Services Ltd,00057600,,Maintenance of Grounds,Parking Off-Street,E10HAE00620402,
http://statistics.data.gov.uk/id/local-authority/29UP,Tonbridge & Malling Borough Council,5/3/2023,0021038540/19,21038540, 160.24,Landscape Services Ltd,00057600,,Maintenance of Grounds,Parking Off-Street,E10HAE01020402,
http://statistics.data.gov.uk/id/local-authority/29UP,Tonbridge & Malling Borough Council,5/3/2023,0021038540/2,21038540, 8244.55,Landscape Services Ltd,00057600,,Grounds Maintenance Contract,Tonbridge Castle Grounds,B22LB000050103,
http://statistics.data.gov.uk/id/local-authority/29UP,Tonbridge & Malling Borough Council,5/3/2023,0021038540/20,21038540, 3.55,Landscape Services Ltd,00057600,,Maintenance of Grounds,Parking Off-Street,E10HAE01220402,
http://statistics.data.gov.uk/id/local-authority/29UP,Tonbridge & Malling Borough Council,5/3/2023,0021038540/21,21038540, 7.83,Landscape Services Ltd,00057600,,Maintenance of Grounds,Parking Off-Street,E10HAE01320402,
http://statistics.data.gov.uk/id/local-authority/29UP,Tonbridge & Malling Borough Council,5/3/2023,0021038540/22,21038540, 32.60,Landscape Services Ltd,00057600,,Maintenance of Grounds,Parking Off-Street,E10HAE01520402,
http://statistics.data.gov.uk/id/local-authority/29UP,Tonbridge & Malling Borough Council,5/3/2023,0021038540/23,21038540, 63.69,Landscape Services Ltd,00057600,,Maintenance of Grounds,Parking Off-Street,E10HAE01620402,
http://statistics.data.gov.uk/id/local-authority/29UP,Tonbridge & Malling Borough Council,5/3/2023,0021038540/24,21038540, 25.88,Landscape Services Ltd,00057600,,Maintenance of Grounds,Parking Off-Street,E10HAE01720402,
http://statistics.data.gov.uk/id/local-authority/29UP,Tonbridge & Malling Borough Council,5/3/2023,0021038540/25,21038540, 15.90,Landscape Services Ltd,00057600,,Maintenance of Grounds,Parking Off-Street,E10HAE02120402,
http://statistics.data.gov.uk/id/local-authority/29UP,Tonbridge & Malling Borough Council,5/3/2023,0021038540/26,21038540, 25.32,Landscape Services Ltd,00057600,,Maintenance of Grounds,Parking Off-Street,E10HAE02320402,
http://statistics.data.gov.uk/id/local-authority/29UP,Tonbridge & Malling Borough Council,5/3/2023,0021038540/27,21038540, 97.05,Landscape Services Ltd,00057600,,Maintenance of Grounds,Parking Off-Street,E10HAE02820402,
http://statistics.data.gov.uk/id/local-authority/29UP,Tonbridge & Malling Borough Council,5/3/2023,0021038540/28,21038540, 26.28,Landscape Services Ltd,00057600,,Maintenance of Grounds,Parking Off-Street,E10HAE04020402,
http://statistics.data.gov.uk/id/local-authority/29UP,Tonbridge & Malling Borough Council,5/3/2023,0021038540/29,21038540, 86.65,Landscape Services Ltd,00057600,,Maintenance of Grounds,Parking Off-Street,E10HAE04520402,
http://statistics.data.gov.uk/id/local-authority/29UP,Tonbridge & Malling Borough Council,5/3/2023,0021038540/3,21038540, 62.73,Landscape Services Ltd,00057600,,Trade Refuse Charges,Haysden Country Park,B22LC000044008,
http://statistics.data.gov.uk/id/local-authority/29UP,Tonbridge & Malling Borough Council,5/3/2023,0021038540/4,21038540, 538.16,Landscape Services Ltd,00057600,,Litter Collection,Haysden Country Park,B22LC000044061,
http://statistics.data.gov.uk/id/local-authority/29UP,Tonbridge & Malling Borough Council,5/3/2023,0021038540/5,21038540, 1849.86,Landscape Services Ltd,00057600,,Grounds Maintenance Contract,Haysden Country Park,B22LC000050103,
http://statistics.data.gov.uk/id/local-authority/29UP,Tonbridge & Malling Borough Council,5/3/2023,0021038540/6,21038540, 645.29,Landscape Services Ltd,00057600,,Grounds Maintenance Contract,Haysden Country Park,B22LC000050103,
http://statistics.data.gov.uk/id/local-authority/29UP,Tonbridge & Malling Borough Council,5/3/2023,0021038540/7,21038540, 13694.83,Landscape Services Ltd,00057600,,Grounds Maintenance Contract,Open Spaces & Amenity Areas,B22LE000050103,
http://statistics.data.gov.uk/id/local-authority/29UP,Tonbridge & Malling Borough Council,5/3/2023,0021038540/8,21038540, 5057.79,Landscape Services Ltd,00057600,,Grounds Maintenance Contract,Cemetery,B26MP000050103,
http://statistics.data.gov.uk/id/local-authority/29UP,Tonbridge & Malling Borough Council,5/3/2023,0021038540/9,21038540, 238.80,Landscape Services Ltd,00057600,,Grounds Maintenance Contract,Churchyards St Peter & St Paul,B28MX000050103,
http://statistics.data.gov.uk/id/local-authority/29UP,Tonbridge & Malling Borough Council,5/3/2023,0022027586/1,22027586, 1714.00,Simply Rented Ltd ,01691400,,Temporary Accommodation,Homelessness,C01AA000044051,
http://statistics.data.gov.uk/id/local-authority/29UP,Tonbridge & Malling Borough Council,5/3/2023,0022027706/1,22027706, 643.91,Town & Country Housing Group,01385400,,Countywide DFG Project,Private Sector Housing Renewal,C03BD000044031,
http://statistics.data.gov.uk/id/local-authority/29UP,Tonbridge & Malling Borough Council,5/3/2023,0022027707/3,22027707, 37.19,Octopus Energy,01895300,,Electricity,Homelessness,C01AATNPR21002,
http://statistics.data.gov.uk/id/local-authority/29UP,Tonbridge & Malling Borough Council,5/3/2023,0022027708/1,22027708, 14.96,Maidstone Borough Council,01173700,,Council Tax,Homelessness,C01AAMAUN23002,
http://statistics.data.gov.uk/id/local-authority/29UP,Tonbridge & Malling Borough Council,5/3/2023,0022027709/1,22027709, 39.15,Maidstone Borough Council,01173700,,Council Tax,Homelessness,C01AAMAUN23002,
http://statistics.data.gov.uk/id/local-authority/29UP,Tonbridge & Malling Borough Council,5/3/2023,0022027710/1,22027710, 80.00,Bella Fiori UK/Joseph Newell,01895600,,Healthy Living Initiatives,Public Health - Healthy Living,H40SYVH0048145,220003336
http://statistics.data.gov.uk/id/local-authority/29UP,Tonbridge & Malling Borough Council,5/3/2023,0022027711/3,22027711, 1464.80,EDF Energy Customers plc,01035000,,Electricity,Homelessness,C01AATNPR21002,
http://statistics.data.gov.uk/id/local-authority/29UP,Tonbridge & Malling Borough Council,5/3/2023,0022027711/4,22027711, 9.90,EDF Energy Customers plc,01035000,,Electricity,Homelessness,C01AATNPR21002,
http://statistics.data.gov.uk/id/local-authority/29UP,Tonbridge & Malling Borough Council,5/3/2023,0022027712/3,22027712, 2650.20,EDF Energy Customers plc,01035000,,Electricity,Homelessness,C01AATNPR21002,
http://statistics.data.gov.uk/id/local-authority/29UP,Tonbridge & Malling Borough Council,5/3/2023,0022027712/4,22027712, 1465.30,EDF Energy Customers plc,01035000,,Electricity,Homelessness,C01AATNPR21002,
http://statistics.data.gov.uk/id/local-authority/29UP,Tonbridge & Malling Borough Council,5/3/2023,0022027713/3,22027713, 112.83,E.ON - Next,01790900,,Electricity,Homelessness,C01AATNPR21002,
http://statistics.data.gov.uk/id/local-authority/29UP,Tonbridge & Malling Borough Council,5/3/2023,0022027714/1,22027714, 488.00,DM Marketing Communications,01742000,,Marketing,Information & Publicity,D32MJ000044215,220003343
http://statistics.data.gov.uk/id/local-authority/29UP,Tonbridge & Malling Borough Council,5/3/2023,0022027715/1,22027715, 3000.00,Building Research Establishment LTD,01139200,,Other Expenses,Private Sector Housing Standar,C09EK000048010,220003341
http://statistics.data.gov.uk/id/local-authority/29UP,Tonbridge & Malling Borough Council,5/3/2023,0022027715/2,22027715, 3465.00,Building Research Establishment LTD,01139200,,Other Expenses,Private Sector Housing Standar,C09EK000048010,220003341
http://statistics.data.gov.uk/id/local-authority/29UP,Tonbridge & Malling Borough Council,5/3/2023,0022027716/1,22027716, 560.00,Nigel Frank Sims,01893700,,Other Expenses,Garden Waste Recycling,H34ST000048010,
http://statistics.data.gov.uk/id/local-authority/29UP,Tonbridge & Malling Borough Council,5/3/2023,0022027717/1,22027717, 490.00,Countrystyle Group,00835900,781981681,Collection of Card,Dry Recycling,H34SR000054008,
http://statistics.data.gov.uk/id/local-authority/29UP,Tonbridge & Malling Borough Council,5/3/2023,0022027718/1,22027718, 510.00,Town & Country Housing Group,01385400,,Other Expenses,Disabled Facilities Grant Mand,P03AC000009908,
http://statistics.data.gov.uk/id/local-authority/29UP,Tonbridge & Malling Borough Council,5/3/2023,0022027719/1,22027719, 4500.00,Dolphin Stairlifts,00698900,,Other Expenses,Disabled Facilities Grant Mand,P03AC000009908,
http://statistics.data.gov.uk/id/local-authority/29UP,Tonbridge & Malling Borough Council,5/3/2023,0022027720/1,22027720, 490.00,Countrystyle Group,00835900,781981681,Collection of Card,Dry Recycling,H34SR000054008,
http://statistics.data.gov.uk/id/local-authority/29UP,Tonbridge & Malling Borough Council,5/3/2023,0022027721/1,22027721, 387.37,Urbaser LTD,01718800,,Maintenance of Grounds,Sports Grounds,B13ET000020402,
http://statistics.data.gov.uk/id/local-authority/29UP,Tonbridge & Malling Borough Council,5/3/2023,0022027721/10,22027721, 60.22,Urbaser LTD,01718800,,Maintenance of Grounds,Grounds,D21FF000020402,
http://statistics.data.gov.uk/id/local-authority/29UP,Tonbridge & Malling Borough Council,5/3/2023,0022027721/11,22027721, 184.19,Urbaser LTD,01718800,,Maintenance of Grounds,Parking Off-Street,E10HA000020402,
http://statistics.data.gov.uk/id/local-authority/29UP,Tonbridge & Malling Borough Council,5/3/2023,0022027721/12,22027721, 4686.59,Urbaser LTD,01718800,,Maintenance of Grounds,Parking Off-Street,E10HAE00120402,
http://statistics.data.gov.uk/id/local-authority/29UP,Tonbridge & Malling Borough Council,5/3/2023,0022027721/13,22027721, 504.84,Urbaser LTD,01718800,,Maintenance of Grounds,Parking Off-Street,E10HAE00220402,
http://statistics.data.gov.uk/id/local-authority/29UP,Tonbridge & Malling Borough Council,5/3/2023,0022027721/14,22027721, 315.82,Urbaser LTD,01718800,,Maintenance of Grounds,Parking Off-Street,E10HAE00320402,
http://statistics.data.gov.uk/id/local-authority/29UP,Tonbridge & Malling Borough Council,5/3/2023,0022027721/15,22027721, 1651.73,Urbaser LTD,01718800,,Maintenance of Grounds,Parking Off-Street,E10HAE00420402,
http://statistics.data.gov.uk/id/local-authority/29UP,Tonbridge & Malling Borough Council,5/3/2023,0022027721/16,22027721, 274.48,Urbaser LTD,01718800,,Maintenance of Grounds,Parking Off-Street,E10HAE00520402,
http://statistics.data.gov.uk/id/local-authority/29UP,Tonbridge & Malling Borough Council,5/3/2023,0022027721/17,22027721, 1023.71,Urbaser LTD,01718800,,Maintenance of Grounds,Parking Off-Street,E10HAE00620402,
http://statistics.data.gov.uk/id/local-authority/29UP,Tonbridge & Malling Borough Council,5/3/2023,0022027721/18,22027721, 8.63,Urbaser LTD,01718800,,Maintenance of Grounds,Parking Off-Street,E10HAE00820402,
http://statistics.data.gov.uk/id/local-authority/29UP,Tonbridge & Malling Borough Council,5/3/2023,0022027721/19,22027721, 8.52,Urbaser LTD,01718800,,Maintenance of Grounds,Parking Off-Street,E10HAE00920402,
http://statistics.data.gov.uk/id/local-authority/29UP,Tonbridge & Malling Borough Council,5/3/2023,0022027721/2,22027721, 82.44,Urbaser LTD,01718800,,Maintenance of Grounds,Poult Wood Golf Centre,B21KE000020402,
http://statistics.data.gov.uk/id/local-authority/29UP,Tonbridge & Malling Borough Council,5/3/2023,0022027721/20,22027721, 20.23,Urbaser LTD,01718800,,Maintenance of Grounds,Parking Off-Street,E10HAE01020402,
http://statistics.data.gov.uk/id/local-authority/29UP,Tonbridge & Malling Borough Council,5/3/2023,0022027721/21,22027721, 96.12,Urbaser LTD,01718800,,Maintenance of Grounds,Parking Off-Street,E10HAE01120402,
http://statistics.data.gov.uk/id/local-authority/29UP,Tonbridge & Malling Borough Council,5/3/2023,0022027721/22,22027721, 60.48,Urbaser LTD,01718800,,Maintenance of Grounds,Parking Off-Street,E10HAE01220402,
http://statistics.data.gov.uk/id/local-authority/29UP,Tonbridge & Malling Borough Council,5/3/2023,0022027721/23,22027721, 1146.81,Urbaser LTD,01718800,,Maintenance of Grounds,Parking Off-Street,E10HAE01320402,
http://statistics.data.gov.uk/id/local-authority/29UP,Tonbridge & Malling Borough Council,5/3/2023,0022027721/24,22027721, 87.22,Urbaser LTD,01718800,,Maintenance of Grounds,Parking Off-Street,E10HAE01420402,
http://statistics.data.gov.uk/id/local-authority/29UP,Tonbridge & Malling Borough Council,5/3/2023,0022027721/25,22027721, 268.78,Urbaser LTD,01718800,,Maintenance of Grounds,Parking Off-Street,E10HAE01520402,
http://statistics.data.gov.uk/id/local-authority/29UP,Tonbridge & Malling Borough Council,5/3/2023,0022027721/26,22027721, 289.08,Urbaser LTD,01718800,,Maintenance of Grounds,Parking Off-Street,E10HAE01620402,
http://statistics.data.gov.uk/id/local-authority/29UP,Tonbridge & Malling Borough Council,5/3/2023,0022027721/27,22027721, 853.41,Urbaser LTD,01718800,,Maintenance of Grounds,Parking Off-Street,E10HAE01720402,
http://statistics.data.gov.uk/id/local-authority/29UP,Tonbridge & Malling Borough Council,5/3/2023,0022027721/28,22027721, 244.95,Urbaser LTD,01718800,,Maintenance of Grounds,Parking Off-Street,E10HAE01920402,
http://statistics.data.gov.uk/id/local-authority/29UP,Tonbridge & Malling Borough Council,5/3/2023,0022027721/29,22027721, 538.07,Urbaser LTD,01718800,,Maintenance of Grounds,Parking Off-Street,E10HAE02020402,
http://statistics.data.gov.uk/id/local-authority/29UP,Tonbridge & Malling Borough Council,5/3/2023,0022027721/3,22027721, 34.02,Urbaser LTD,01718800,,Maintenance of Grounds,Haysden Country Park,B22LC000020402,
http://statistics.data.gov.uk/id/local-authority/29UP,Tonbridge & Malling Borough Council,5/3/2023,0022027721/30,22027721, 18.68,Urbaser LTD,01718800,,Maintenance of Grounds,Parking Off-Street,E10HAE02120402,
http://statistics.data.gov.uk/id/local-authority/29UP,Tonbridge & Malling Borough Council,5/3/2023,0022027721/31,22027721, 123.00,Urbaser LTD,01718800,,Maintenance of Grounds,Parking Off-Street,E10HAE02220402,
http://statistics.data.gov.uk/id/local-authority/29UP,Tonbridge & Malling Borough Council,5/3/2023,0022027721/32,22027721, 1034.02,Urbaser LTD,01718800,,Maintenance of Grounds,Parking Off-Street,E10HAE02320402,
http://statistics.data.gov.uk/id/local-authority/29UP,Tonbridge & Malling Borough Council,5/3/2023,0022027721/33,22027721, 2.67,Urbaser LTD,01718800,,Maintenance of Grounds,Parking Off-Street,E10HAE02720402,
http://statistics.data.gov.uk/id/local-authority/29UP,Tonbridge & Malling Borough Council,5/3/2023,0022027721/34,22027721, 375.72,Urbaser LTD,01718800,,Maintenance of Grounds,Parking Off-Street,E10HAE02820402,
http://statistics.data.gov.uk/id/local-authority/29UP,Tonbridge & Malling Borough Council,5/3/2023,0022027721/35,22027721, 6.77,Urbaser LTD,01718800,,Maintenance of Grounds,Parking Off-Street,E10HAE02920402,
http://statistics.data.gov.uk/id/local-authority/29UP,Tonbridge & Malling Borough Council,5/3/2023,0022027721/36,22027721, 39.82,Urbaser LTD,01718800,,Maintenance of Grounds,Parking Off-Street,E10HAE03020402,
http://statistics.data.gov.uk/id/local-authority/29UP,Tonbridge & Malling Borough Council,5/3/2023,0022027721/37,22027721, 33.88,Urbaser LTD,01718800,,Maintenance of Grounds,Parking Off-Street,E10HAE03120402,
http://statistics.data.gov.uk/id/local-authority/29UP,Tonbridge & Malling Borough Council,5/3/2023,0022027721/38,22027721, 718.40,Urbaser LTD,01718800,,Maintenance of Grounds,Parking Off-Street,E10HAE04020402,
http://statistics.data.gov.uk/id/local-authority/29UP,Tonbridge & Malling Borough Council,5/3/2023,0022027721/39,22027721, 498.26,Urbaser LTD,01718800,,Maintenance of Grounds,Parking Off-Street,E10HAE04220402,
http://statistics.data.gov.uk/id/local-authority/29UP,Tonbridge & Malling Borough Council,5/3/2023,0022027721/4,22027721, 26.13,Urbaser LTD,01718800,,Dog Bin Emptying,Haysden Country Park,B22LC000044012,
http://statistics.data.gov.uk/id/local-authority/29UP,Tonbridge & Malling Borough Council,5/3/2023,0022027721/40,22027721, 1430.15,Urbaser LTD,01718800,,Maintenance of Grounds,Parking Off-Street,E10HAE04520402,
http://statistics.data.gov.uk/id/local-authority/29UP,Tonbridge & Malling Borough Council,5/3/2023,0022027721/41,22027721, 92676.10,Urbaser LTD,01718800,,Contract Payments,Refuse Collection,H20SA000054001,
http://statistics.data.gov.uk/id/local-authority/29UP,Tonbridge & Malling Borough Council,5/3/2023,0022027721/42,22027721, 946.15,Urbaser LTD,01718800,,Responsible Dog Ownership,Street Scene,H23SD000044050,
http://statistics.data.gov.uk/id/local-authority/29UP,Tonbridge & Malling Borough Council,5/3/2023,0022027721/43,22027721, 56523.64,Urbaser LTD,01718800,,Contract Payments,Street Scene,H23SD000054001,
http://statistics.data.gov.uk/id/local-authority/29UP,Tonbridge & Malling Borough Council,5/3/2023,0022027721/44,22027721, 356.30,Urbaser LTD,01718800,,General Maintenance,Dry Recycling,H34SR000020301,
http://statistics.data.gov.uk/id/local-authority/29UP,Tonbridge & Malling Borough Council,5/3/2023,0022027721/45,22027721, 84198.36,Urbaser LTD,01718800,,Contract Payments,Dry Recycling,H34SR000054001,
http://statistics.data.gov.uk/id/local-authority/29UP,Tonbridge & Malling Borough Council,5/3/2023,0022027721/46,22027721, 32945.93,Urbaser LTD,01718800,,Contract Payments,Food Recycling,H34SS000054001,
http://statistics.data.gov.uk/id/local-authority/29UP,Tonbridge & Malling Borough Council,5/3/2023,0022027721/47,22027721, 17888.09,Urbaser LTD,01718800,,Contract Payments,Garden Waste Recycling,H34ST000054001,
http://statistics.data.gov.uk/id/local-authority/29UP,Tonbridge & Malling Borough Council,5/3/2023,0022027721/5,22027721, 740.63,Urbaser LTD,01718800,,Maintenance of Grounds,Open Spaces & Amenity Areas,B22LE000020402,
http://statistics.data.gov.uk/id/local-authority/29UP,Tonbridge & Malling Borough Council,5/3/2023,0022027721/6,22027721, 13.93,Urbaser LTD,01718800,,Dog Bin Emptying,Open Spaces & Amenity Areas,B22LE000044012,
http://statistics.data.gov.uk/id/local-authority/29UP,Tonbridge & Malling Borough Council,5/3/2023,0022027721/7,22027721, 24.04,Urbaser LTD,01718800,,Maintenance of Grounds,Countryside/Woodland Mgt,B22LG000020402,
http://statistics.data.gov.uk/id/local-authority/29UP,Tonbridge & Malling Borough Council,5/3/2023,0022027721/8,22027721, 72.20,Urbaser LTD,01718800,,Maintenance of Grounds,Leybourne Lakes Country Park,B22LK000020402,
http://statistics.data.gov.uk/id/local-authority/29UP,Tonbridge & Malling Borough Council,5/3/2023,0022027721/9,22027721, 26.13,Urbaser LTD,01718800,,Dog Bin Emptying,Leybourne Lakes Country Park,B22LK000044012,
http://statistics.data.gov.uk/id/local-authority/29UP,Tonbridge & Malling Borough Council,5/3/2023,0031019423/1,31019423, 6.00,Flowbird Smart City UK Limited,00898700,,Premises Repairs & Maintenance,Parking Off-Street,E10HA000020601,310043023
http://statistics.data.gov.uk/id/local-authority/29UP,Tonbridge & Malling Borough Council,5/3/2023,0031019423/2,31019423, 80.00,Flowbird Smart City UK Limited,00898700,,Premises Repairs & Maintenance,Parking Off-Street,E10HA000020601,310043023
http://statistics.data.gov.uk/id/local-authority/29UP,Tonbridge & Malling Borough Council,5/3/2023,0031019423/3,31019423, 120.00,Flowbird Smart City UK Limited,00898700,,Premises Repairs & Maintenance,Parking On-Street,E10HD000020601,310043023
http://statistics.data.gov.uk/id/local-authority/29UP,Tonbridge & Malling Borough Council,5/3/2023,0031019423/4,31019423, 9.00,Flowbird Smart City UK Limited,00898700,,Premises Repairs & Maintenance,Parking On-Street,E10HD000020601,310043023
http://statistics.data.gov.uk/id/local-authority/29UP,Tonbridge & Malling Borough Council,5/3/2023,0031019425/1,31019425, 17.99,KCS Education/CSG Global Education Ltd,01897200,408845925,Stationery,Technical Sals&Overheads,D01AE000043003,310043019
http://statistics.data.gov.uk/id/local-authority/29UP,Tonbridge & Malling Borough Council,5/3/2023,0031019425/2,31019425, 21.99,KCS Education/CSG Global Education Ltd,01897200,408845925,Purchases,Civil Contingencies,D33NA000040101,310043019
http://statistics.data.gov.uk/id/local-authority/29UP,Tonbridge & Malling Borough Council,5/3/2023,0031019425/3,31019425, 16.47,KCS Education/CSG Global Education Ltd,01897200,408845925,Purchases,Civil Contingencies,D33NA000040101,310043019
http://statistics.data.gov.uk/id/local-authority/29UP,Tonbridge & Malling Borough Council,5/3/2023,0031019425/4,31019425, 6.98,KCS Education/CSG Global Education Ltd,01897200,408845925,Purchases,Civil Contingencies,D33NA000040101,310043019
http://statistics.data.gov.uk/id/local-authority/29UP,Tonbridge & Malling Borough Council,5/3/2023,0031019426/1,31019426, 200.00,SKF Contractors Ltd,00092000,,Premises Repairs & Maintenance,Parking On-Street,E10HD000020601,310043024
http://statistics.data.gov.uk/id/local-authority/29UP,Tonbridge & Malling Borough Council,5/3/2023,0031019427/1,31019427, 2944.00,Duke Contractors Ltd,00082900,,BRREP Hard paving surface rep,Larkfield Leisure Centre,M15HDP20001946,310042987
http://statistics.data.gov.uk/id/local-authority/29UP,Tonbridge & Malling Borough Council,5/3/2023,0031019430/1,31019430, 195.48,British Telecommunications Plc,00012800,,Maintenance - General,Security Services Management,E09GA000040135,
http://statistics.data.gov.uk/id/local-authority/29UP,Tonbridge & Malling Borough Council,5/3/2023,0032010181/3,32010181, 1667.25,Vivid Resourcing,01773700,,Temporary Staff,Planning Sals&Overheads,D01AJDJ0111300,
http://statistics.data.gov.uk/id/local-authority/29UP,Tonbridge & Malling Borough Council,5/3/2023,0032010182/3,32010182, 3630.00,Quality Bailiffs,01835600,,Payment re Prev Yrs Cred Acc,Sundry Creditors PHEHS,J80TB000001101,
http://statistics.data.gov.uk/id/local-authority/29UP,Tonbridge & Malling Borough Council,5/3/2023,0032010183/3,32010183, 1684.41,The Oyster Partnership,01196400,,Temporary Staff,Planning Sals&Overheads,D01AJDJ0111300,
http://statistics.data.gov.uk/id/local-authority/29UP,Tonbridge & Malling Borough Council,5/3/2023,0032010184/3,32010184, 1606.50,The Oyster Partnership,01196400,,Temporary Staff,Planning Sals&Overheads,D01AJDJ0111300,
http://statistics.data.gov.uk/id/local-authority/29UP,Tonbridge & Malling Borough Council,5/3/2023,0032010185/3,32010185, 1323.00,The Oyster Partnership,01196400,,Temporary Staff,Planning Sals&Overheads,D01AJDJ0111300,
http://statistics.data.gov.uk/id/local-authority/29UP,Tonbridge & Malling Borough Council,5/3/2023,0032010186/3,32010186, 517.73,KH Recruitment Ltd,01738900,,Temporary Staff,Planning Sals&Overheads,D01AJDJ0111300,
http://statistics.data.gov.uk/id/local-authority/29UP,Tonbridge & Malling Borough Council,5/3/2023,0032010187/1,32010187, 200.00,Environment Agency,00418100,,Development of Local Plan,Development of Local Plan,A01AE000044023,320003400
http://statistics.data.gov.uk/id/local-authority/29UP,Tonbridge & Malling Borough Council,5/3/2023,0032010188/1,32010188, 550.00,Dartford Borough Council,00026000,,Development of Local Plan,Development of Local Plan,A01AE000044023,310043016
http://statistics.data.gov.uk/id/local-authority/29UP,Tonbridge & Malling Borough Council,5/3/2023,0032010189/3,32010189, 1612.50,Carrington West Limited,01844500,,Temporary Staff,Planning Sals&Overheads,D01AJDJ0111300,
http://statistics.data.gov.uk/id/local-authority/29UP,Tonbridge & Malling Borough Council,5/3/2023,0032010190/3,32010190, 1333.00,Carrington West Limited,01844500,,Temporary Staff,Planning Sals&Overheads,D01AJDJ0111300,
http://statistics.data.gov.uk/id/local-authority/29UP,Tonbridge & Malling Borough Council,5/3/2023,0041035456/1,41035456, 21.40,KCS Education/CSG Global Education Ltd,01897200,408845925,Stationery,Finance Sals&Overheads,D01AF000043003,
http://statistics.data.gov.uk/id/local-authority/29UP,Tonbridge & Malling Borough Council,5/3/2023,0041035473/3,41035473, 20.00,Computershare Voucher Services,01212600,,Childcare Scheme,Finance Sals&Overheads,D01AFDF0911136,
http://statistics.data.gov.uk/id/local-authority/29UP,Tonbridge & Malling Borough Council,5/3/2023,0041035473/4,41035473, 1.40,Computershare Voucher Services,01212600,,National Insurance,Finance Sals&Overheads,D01AFDF0911191,
http://statistics.data.gov.uk/id/local-authority/29UP,Tonbridge & Malling Borough Council,5/3/2023,0041035473/5,41035473, 20.00,Computershare Voucher Services,01212600,,Childcare Scheme,Env Hlth & Hsg Sals&Overheads,D01AVDV0211136,
http://statistics.data.gov.uk/id/local-authority/29UP,Tonbridge & Malling Borough Council,5/3/2023,0041035473/6,41035473, 1.40,Computershare Voucher Services,01212600,,National Insurance,Env Hlth & Hsg Sals&Overheads,D01AVDV0211191,
http://statistics.data.gov.uk/id/local-authority/29UP,Tonbridge & Malling Borough Council,5/3/2023,0041035473/7,41035473, 243.00,Computershare Voucher Services,01212600,,Childcare Scheme,Env Hlth & Hsg Sals&Overheads,D01AVDV0711136,
http://statistics.data.gov.uk/id/local-authority/29UP,Tonbridge & Malling Borough Council,5/3/2023,0041035473/8,41035473, 17.01,Computershare Voucher Services,01212600,,National Insurance,Env Hlth & Hsg Sals&Overheads,D01AVDV0711191,
http://statistics.data.gov.uk/id/local-authority/29UP,Tonbridge & Malling Borough Council,5/3/2023,0041035474/1,41035474, 66.64,Amazon EU SARL,01738400,,Cleaning & Domestic Supplies,Cleaning & Security,D21FD000026001,410032402
http://statistics.data.gov.uk/id/local-authority/29UP,Tonbridge & Malling Borough Council,5/3/2023,0041035475/3,41035475, 1081.14,Morgan Hunt UK Ltd,01086900,,Temporary Staff,Finance Sals&Overheads,D01AFDF1111300,
http://statistics.data.gov.uk/id/local-authority/29UP,Tonbridge & Malling Borough Council,5/3/2023,0041035476/3,41035476, 1031.74,Rundle & Co Ltd,00087200,,Bailiffs Commission,Local Revenue & NNDR Collect,D41QA000044075,
http://statistics.data.gov.uk/id/local-authority/29UP,Tonbridge & Malling Borough Council,5/3/2023,0051008806/1,51008806, 359.00,St John Ambulance Supplies,01228000,,Ext Fees/Health & Safety,Training,D10DCDB0013566,510010627
http://statistics.data.gov.uk/id/local-authority/29UP,Tonbridge & Malling Borough Council,5/3/2023,0051008807/3,51008807, 15.00,Commercial Services Kent Ltd,01655800,,Criminal Records Bureau Checks,Recruitment Expenses,D10DA000013180,
http://statistics.data.gov.uk/id/local-authority/29UP,Tonbridge & Malling Borough Council,5/3/2023,0051008807/4,51008807, 36.00,Commercial Services Kent Ltd,01655800,,Criminal Records Bureau Checks,Recruitment Expenses,D10DA000013180,
http://statistics.data.gov.uk/id/local-authority/29UP,Tonbridge & Malling Borough Council,5/3/2023,0051008808/1,51008808, 1695.00,Haymarket Media Group Limited,01197800,,Recruitment Advertising,Recruitment Expenses,D10DADJ0313110,
http://statistics.data.gov.uk/id/local-authority/29UP,Tonbridge & Malling Borough Council,5/5/2023,0041035485/1,41035485, 11311.41,Local Government Association,01186000,,Subscriptions,Committee Administration,D29LL000047002,
http://statistics.data.gov.uk/id/local-authority/29UP,Tonbridge & Malling Borough Council,5/5/2023,0041035486/1,41035486, 113529.58,Lower Medway Internal Drainage Board,00059900,,Payments to Drainage Boards,Drainage Boards Levies,D44QT000024004,
http://statistics.data.gov.uk/id/local-authority/29UP,Tonbridge & Malling Borough Council,5/5/2023,0041035487/1,41035487, 128505.02,Upper Medway Internal Drainage Board,00109100,,Payments to Drainage Boards,Drainage Boards Levies,D44QT000024004,
http://statistics.data.gov.uk/id/local-authority/29UP,Tonbridge & Malling Borough Council,5/10/2023,0011046074/3,11046074, 31.25,REDACTED PERSONAL DATA,01683000,,Castle Catering Provisions,Ton Castle Council Chamber,D21FC000041015,
http://statistics.data.gov.uk/id/local-authority/29UP,Tonbridge & Malling Borough Council,5/10/2023,0011046075/1,11046075, 3600.00,Imago Community,01190800,,Citizens Advice Bureau Grants,Grants & Payments to CAB,D37PB000047004,
http://statistics.data.gov.uk/id/local-authority/29UP,Tonbridge & Malling Borough Council,5/10/2023,0011046076/1,11046076, 95000.00,Citizens Advice North and West Kent ,01617600,,Citizens Advice Bureau Grants,Grants & Payments to CAB,D37PB000047004,
http://statistics.data.gov.uk/id/local-authority/29UP,Tonbridge & Malling Borough Council,5/10/2023,0011046077/1,11046077, 4320.00,Maidstone Mediation Scheme,00122700,,Citizens Advice Bureau Grants,Grants & Payments to CAB,D37PB000047004,
http://statistics.data.gov.uk/id/local-authority/29UP,Tonbridge & Malling Borough Council,5/10/2023,0011046078/1,11046078, 13.76,Scottish Water Business Stream Ltd,01641100,,Estate Management Charge,Land Review,D40PS000020400,
http://statistics.data.gov.uk/id/local-authority/29UP,Tonbridge & Malling Borough Council,5/10/2023,0011046079/3,11046079, 1642.50,Betteridge & Milsom Ltd.,01441000,,Payment re Prev Yrs Cred Acc,Sundry Creditors Admin & Prop,J80TA000001101,
http://statistics.data.gov.uk/id/local-authority/29UP,Tonbridge & Malling Borough Council,5/10/2023,0011046080/1,11046080, 302.40,Brachers Solicitors,00512000,,Legal Fees,Legal Sals&Overheads,D01ARDR0044002,
http://statistics.data.gov.uk/id/local-authority/29UP,Tonbridge & Malling Borough Council,5/10/2023,0011046081/3,11046081, 64.00,K T Fire Protection Ltd,00057000,,Payment re Prev Yrs Cred Acc,Sundry Creditors Admin & Prop,J80TA000001101,
http://statistics.data.gov.uk/id/local-authority/29UP,Tonbridge & Malling Borough Council,5/10/2023,0011046082/1,11046082, 1016.73,Scottish Water Business Stream Ltd,01641100,,Sewerage Charges,Buildings,D21FEDD6024003,
http://statistics.data.gov.uk/id/local-authority/29UP,Tonbridge & Malling Borough Council,5/10/2023,0011046083/1,11046083, 576.55,Scottish Water Business Stream Ltd,01641100,,Sewerage Charges,Buildings,D21FEDD5024003,
http://statistics.data.gov.uk/id/local-authority/29UP,Tonbridge & Malling Borough Council,5/10/2023,0011046084/1,11046084, 6.95,REDACTED PERSONAL DATA,01898800,,Purchases,Mailsort Stock Account,K37BR000001002,
http://statistics.data.gov.uk/id/local-authority/29UP,Tonbridge & Malling Borough Council,5/10/2023,0011046085/3,11046085, 1217.80,Sellick Partnership Group Limited,01336800,,Temporary Staff,Legal Sals&Overheads,D01ARDR0011300,
http://statistics.data.gov.uk/id/local-authority/29UP,Tonbridge & Malling Borough Council,5/10/2023,0011046086/1,11046086, 2625.00,Security & Electronic Solutions Ltd,01379500,,BRREP Servicing - CCTV,Larkfield Leisure Centre,M15HDP20001952,110069804
http://statistics.data.gov.uk/id/local-authority/29UP,Tonbridge & Malling Borough Council,5/10/2023,0011046088/1,11046088, 1875.00,Security & Electronic Solutions Ltd,01379500,,BRREP Servicing - CCTV,Angel Centre,M15HAP20001952,110069802
http://statistics.data.gov.uk/id/local-authority/29UP,Tonbridge & Malling Borough Council,5/10/2023,0011046089/1,11046089, 2625.00,Security & Electronic Solutions Ltd,01379500,,BRREP Servicing - CCTV,Tonbridge Swimming Pool,M15HBP20001952,110069805
http://statistics.data.gov.uk/id/local-authority/29UP,Tonbridge & Malling Borough Council,5/10/2023,0011046090/1,11046090, 1875.00,Security & Electronic Solutions Ltd,01379500,,BRREP Servicing - CCTV,Leis Man Poult Wood Golf Centr,M15HEP20001952,110069803
http://statistics.data.gov.uk/id/local-authority/29UP,Tonbridge & Malling Borough Council,5/10/2023,0011046091/3,11046091, 24.15,Oasis Group  - Box-It South East,00966800,931579211,Purchases,Electoral Registration,D31MF000040101,
http://statistics.data.gov.uk/id/local-authority/29UP,Tonbridge & Malling Borough Council,5/10/2023,0011046092/3,11046092, 1385.71,Kent County Council,00322500,,Kent Highways,Local Land Charges,D35NK000044240,
http://statistics.data.gov.uk/id/local-authority/29UP,Tonbridge & Malling Borough Council,5/10/2023,0011046093/3,11046093, 1822.49,Venn Group Ltd,00914300,,Temporary Staff,Legal Sals&Overheads,D01ARDR0011300,
http://statistics.data.gov.uk/id/local-authority/29UP,Tonbridge & Malling Borough Council,5/10/2023,0011046094/1,11046094, 168.00,Tonbridge Historical Society,00458000,,Purchases,TIC Stock Account,K18AX000001002,
http://statistics.data.gov.uk/id/local-authority/29UP,Tonbridge & Malling Borough Council,5/10/2023,0012008721/1,12008721, 2004.00,Dataquest Ltd - CC Engineering Limited,01233100,438498209,Maintenance - Ancillary Equip,Information Technology,D27KD000040137,410032400
http://statistics.data.gov.uk/id/local-authority/29UP,Tonbridge & Malling Borough Council,5/10/2023,0012008722/1,12008722, 33.99,CCS Media Ltd,00018000,,Purchases,St Scene & Leis Sals&Overheads,D01AGDG3040101,410032406
http://statistics.data.gov.uk/id/local-authority/29UP,Tonbridge & Malling Borough Council,5/10/2023,0012008723/1,12008723, 126.99,CCS Media Ltd,00018000,,Purchases,St Scene & Leis Sals&Overheads,D01AGDG3040101,410032406
http://statistics.data.gov.uk/id/local-authority/29UP,Tonbridge & Malling Borough Council,5/10/2023,0012008723/2,12008723, 4.00,CCS Media Ltd,00018000,,Purchases,St Scene & Leis Sals&Overheads,D01AGDG3040101,410032406
http://statistics.data.gov.uk/id/local-authority/29UP,Tonbridge & Malling Borough Council,5/10/2023,0012008724/3,12008724, 13.25,Daisy Communications,01068100,,Telephones - Rentals,General Admin Telephones,D24GT000045005,
http://statistics.data.gov.uk/id/local-authority/29UP,Tonbridge & Malling Borough Council,5/10/2023,0012008724/4,12008724, 285.76,Daisy Communications,01068100,,Telephones - Call Costs,General Admin Telephones,D24GT000045006,
http://statistics.data.gov.uk/id/local-authority/29UP,Tonbridge & Malling Borough Council,5/10/2023,0012008724/5,12008724, 95.92,Daisy Communications,01068100,,Leased Lines & Modems,Information Technology,D27KD000045011,
http://statistics.data.gov.uk/id/local-authority/29UP,Tonbridge & Malling Borough Council,5/10/2023,0012008724/6,12008724, 74.46,Daisy Communications,01068100,,Maintenance - General,Security Services Management,E09GA000040135,
http://statistics.data.gov.uk/id/local-authority/29UP,Tonbridge & Malling Borough Council,5/10/2023,0012008725/3,12008725, 1513.90,NTT Cloud Communications UK Ltd,01794600,,Software Hire & Support,Information Technology,D27KD000044059,
http://statistics.data.gov.uk/id/local-authority/29UP,Tonbridge & Malling Borough Council,5/10/2023,0012008726/3,12008726, 401.83,Trustmarque Solutions Ltd,01673200,,Software Hire & Support,Information Technology,D27KD000044059,
http://statistics.data.gov.uk/id/local-authority/29UP,Tonbridge & Malling Borough Council,5/10/2023,0012008727/1,12008727, 1468.00,3C Technology Limited,00997700,,Software Hire & Support,Information Technology,D27KD000044059,410032407
http://statistics.data.gov.uk/id/local-authority/29UP,Tonbridge & Malling Borough Council,5/10/2023,0012008728/1,12008728, 1995.00,NEC Software Solutions UK Ltd,01073900,202159745,Software Hire & Support,Information Technology,D27KD000044059,
http://statistics.data.gov.uk/id/local-authority/29UP,Tonbridge & Malling Borough Council,5/10/2023,0021038541/1,21038541, 527.40,G.L. & R.G. Bourne,00737500,,Gates / Security,Haysden Country Park,B22LC000044017,210057185
http://statistics.data.gov.uk/id/local-authority/29UP,Tonbridge & Malling Borough Council,5/10/2023,0021038542/1,21038542, 40.00,G.L. & R.G. Bourne,00737500,,Maintenance of Grounds,Haysden Country Park,B22LC000020402,210057185
http://statistics.data.gov.uk/id/local-authority/29UP,Tonbridge & Malling Borough Council,5/10/2023,0021038543/1,21038543, 72.30,G.L. & R.G. Bourne,00737500,,Gates / Security,Haysden Country Park,B22LC000044017,210057185
http://statistics.data.gov.uk/id/local-authority/29UP,Tonbridge & Malling Borough Council,5/10/2023,0021038545/1,21038545, 355.00,David Hodgkinson Photographer,01068900,,Marketing,Events Development,B41TJZ99944215,110070205
http://statistics.data.gov.uk/id/local-authority/29UP,Tonbridge & Malling Borough Council,5/10/2023,0021038546/1,21038546, 125.00,Flash Mobile Welding Services Ltd,01189200,,Maintenance of Grounds,Open Spaces & Amenity Areas,B22LE000020402,210057214
http://statistics.data.gov.uk/id/local-authority/29UP,Tonbridge & Malling Borough Council,5/10/2023,0021038547/3,21038547, 88.95,KCC - L.A.S.E.R Commercial Services ,00184300,,Electricity,Open Spaces & Amenity Areas,B22LE000021002,
http://statistics.data.gov.uk/id/local-authority/29UP,Tonbridge & Malling Borough Council,5/10/2023,0021038548/3,21038548, 54.85,Kings Hill Garage Ltd,01546300,,Transport Repair & Maintenance,Patrolling,B22LF000030103,
http://statistics.data.gov.uk/id/local-authority/29UP,Tonbridge & Malling Borough Council,5/10/2023,0021038548/4,21038548, 262.93,Kings Hill Garage Ltd,01546300,,Transport Repair & Maintenance,Patrolling,B22LF000030103,
http://statistics.data.gov.uk/id/local-authority/29UP,Tonbridge & Malling Borough Council,5/10/2023,0021038549/3,21038549, 880.00,Loxton Installations Ltd,01278800,,Payment re Prev Yrs Cred Acc,Sundry Creditors SSLTS,J80TL000001101,
http://statistics.data.gov.uk/id/local-authority/29UP,Tonbridge & Malling Borough Council,5/10/2023,0021038550/1,21038550, 1100.00,Tonbridge Sports Association,00976800,,Honoraria,Tonbridge Sports Association,B02AH000044036,
http://statistics.data.gov.uk/id/local-authority/29UP,Tonbridge & Malling Borough Council,5/10/2023,0021038551/1,21038551, 16.67,Rock UK,01212500,,Partnership Fees,Youth Partnerships,B33PG000044048,
http://statistics.data.gov.uk/id/local-authority/29UP,Tonbridge & Malling Borough Council,5/10/2023,0021038552/1,21038552, 464.11,Landscape Services Ltd,00057600,,Grounds Maintenance Contract,Open Spaces & Amenity Areas,B22LE000050103,
http://statistics.data.gov.uk/id/local-authority/29UP,Tonbridge & Malling Borough Council,5/10/2023,0021038552/2,21038552, 45.30,Landscape Services Ltd,00057600,,Grounds Maintenance Contract,Cemetery,B26MP000050103,
http://statistics.data.gov.uk/id/local-authority/29UP,Tonbridge & Malling Borough Council,5/10/2023,0021038552/3,21038552, 6.95,Landscape Services Ltd,00057600,,Grounds Maintenance Contract,Cemetery,B26MP000050103,
http://statistics.data.gov.uk/id/local-authority/29UP,Tonbridge & Malling Borough Council,5/10/2023,0021038552/4,21038552, 17.68,Landscape Services Ltd,00057600,,Grounds Maintenance Contract,Churchyards St Peter & St Paul,B28MX000050103,
http://statistics.data.gov.uk/id/local-authority/29UP,Tonbridge & Malling Borough Council,5/10/2023,0021038552/5,21038552, 17.68,Landscape Services Ltd,00057600,,Grounds Maintenance Contract,Churchyards St Stephens,B28MY000050103,
http://statistics.data.gov.uk/id/local-authority/29UP,Tonbridge & Malling Borough Council,5/10/2023,0021038553/1,21038553, 750.00,Azra Catering,01647000,,Initial Furniture & Equipment,Capital Renewals Leisure,P05KGBC0309906,
http://statistics.data.gov.uk/id/local-authority/29UP,Tonbridge & Malling Borough Council,5/10/2023,0021038554/1,21038554, 599.00,Azra Catering,01647000,,Initial Furniture & Equipment,Capital Renewals Leisure,P05KGBC0309906,
http://statistics.data.gov.uk/id/local-authority/29UP,Tonbridge & Malling Borough Council,5/10/2023,0022027722/1,22027722, 7674.42,Roca Verdi Limited,01870500,,Other Expenses,Disabled Facilities Grant Mand,P03AC000009908,
http://statistics.data.gov.uk/id/local-authority/29UP,Tonbridge & Malling Borough Council,5/10/2023,0022027723/1,22027723, 1105.12,Town & Country Housing Group,01385400,,Other Expenses,Disabled Facilities Grant Mand,P03AC000009908,
http://statistics.data.gov.uk/id/local-authority/29UP,Tonbridge & Malling Borough Council,5/10/2023,0022027724/3,22027724, 42.18,Biffa Waste Services Ltd,01284500,,Trade Refuse Charges,Cleaning & Security,D21FD000044008,
http://statistics.data.gov.uk/id/local-authority/29UP,Tonbridge & Malling Borough Council,5/10/2023,0022027725/1,22027725, 5850.00,Craemer UK LTD,01616400,,Initial Furniture & Equipment,Refuse Bins Growth/Replacement,P02DA000009906,220003340
http://statistics.data.gov.uk/id/local-authority/29UP,Tonbridge & Malling Borough Council,5/10/2023,0022027728/3,22027728, 4322.11,Ward Security LTD,01490000,,Dog Warden,Street Scene,H23SD000044100,
http://statistics.data.gov.uk/id/local-authority/29UP,Tonbridge & Malling Borough Council,5/10/2023,0022027729/3,22027729, 4624.20,Ward Security LTD,01490000,,Dog Warden,Street Scene,H23SD000044100,
http://statistics.data.gov.uk/id/local-authority/29UP,Tonbridge & Malling Borough Council,5/10/2023,0022027730/1,22027730, 30762.41,Urbaser LTD,01718800,,Contract Payments,Refuse Collection,H20SA000054001,220003334
http://statistics.data.gov.uk/id/local-authority/29UP,Tonbridge & Malling Borough Council,5/10/2023,0022027731/1,22027731, 10048.00,SPA CAFFE LIMITED,00127100,,Temporary Accommodation,Homelessness,C01AA000044051,
http://statistics.data.gov.uk/id/local-authority/29UP,Tonbridge & Malling Borough Council,5/10/2023,0022027732/1,22027732, 23479.50,Social & Community Care,01768400,,Temporary Accommodation,Homelessness,C01AA000044051,
http://statistics.data.gov.uk/id/local-authority/29UP,Tonbridge & Malling Borough Council,5/10/2023,0022027733/1,22027733, 2486.45,The Care Group-Housing & Care Trust,01699600,,Temporary Accommodation,Homelessness,C01AA000044051,
http://statistics.data.gov.uk/id/local-authority/29UP,Tonbridge & Malling Borough Council,5/10/2023,0022027734/1,22027734, 10244.00,Smart Property Professionals,01815100,,Temporary Accommodation,Homelessness,C01AA000044051,
http://statistics.data.gov.uk/id/local-authority/29UP,Tonbridge & Malling Borough Council,5/10/2023,0022027735/1,22027735, 1421.00,Simply Rented Ltd ,01691400,,Temporary Accommodation,Homelessness,C01AA000044051,
http://statistics.data.gov.uk/id/local-authority/29UP,Tonbridge & Malling Borough Council,5/10/2023,0022027736/1,22027736, 1650.00,Simon Niblett Lettings,00072600,,Temporary Accommodation,Homelessness,C01AA000044051,
http://statistics.data.gov.uk/id/local-authority/29UP,Tonbridge & Malling Borough Council,5/10/2023,0022027737/1,22027737, 9720.00,Simon Niblett Lettings,00072600,,Temporary Accommodation,Homelessness,C01AA000044051,
http://statistics.data.gov.uk/id/local-authority/29UP,Tonbridge & Malling Borough Council,5/10/2023,0022027738/1,22027738, 70.00,ReferAll Ltd,01817700,,Healthy Living Initiatives,Public Health - Healthy Living,H40SYVH0048145,220003325
http://statistics.data.gov.uk/id/local-authority/29UP,Tonbridge & Malling Borough Council,5/10/2023,0022027739/1,22027739, 5370.00,Premier Property Providers,01785400,,Temporary Accommodation,Homelessness,C01AA000044051,
http://statistics.data.gov.uk/id/local-authority/29UP,Tonbridge & Malling Borough Council,5/10/2023,0022027740/1,22027740, 172.13,Premier Inn,01217400,,Temporary Accommodation,Homelessness,C01AA000044051,
http://statistics.data.gov.uk/id/local-authority/29UP,Tonbridge & Malling Borough Council,5/10/2023,0022027741/1,22027741, 28159.00,Paramount Independent Property Suppliers,01595300,,Temporary Accommodation,Homelessness,C01AA000044051,
http://statistics.data.gov.uk/id/local-authority/29UP,Tonbridge & Malling Borough Council,5/10/2023,0022027742/1,22027742, 375.00,Monitor Pest Control Ltd,01476700,,Other Expenses,Pest Control,H24SE000048010,
http://statistics.data.gov.uk/id/local-authority/29UP,Tonbridge & Malling Borough Council,5/10/2023,0022027743/1,22027743, 6270.00,Less Homeless Ltd,01489300,,Temporary Accommodation,Homelessness,C01AA000044051,
http://statistics.data.gov.uk/id/local-authority/29UP,Tonbridge & Malling Borough Council,5/10/2023,0022027744/1,22027744, 1830.00,Kent Housing,01503200,,Temporary Accommodation,Homelessness,C01AA000044051,
http://statistics.data.gov.uk/id/local-authority/29UP,Tonbridge & Malling Borough Council,5/10/2023,0022027745/1,22027745, 8812.00,Kent Accommodation Ltd,01722000,,Temporary Accommodation,Homelessness,C01AA000044051,
http://statistics.data.gov.uk/id/local-authority/29UP,Tonbridge & Malling Borough Council,5/10/2023,0022027746/1,22027746, 57.50,Housing Ombudsman Service,01767100,,Subscriptions,Env Hlth & Hsg Sals&Overheads,D01AVDV0747002,
http://statistics.data.gov.uk/id/local-authority/29UP,Tonbridge & Malling Borough Council,5/10/2023,0022027747/1,22027747, 550.00,Green Recycling LTD,01563000,,General Maintenance,Dry Recycling,H34SR000020301,
http://statistics.data.gov.uk/id/local-authority/29UP,Tonbridge & Malling Borough Council,5/10/2023,0022027748/1,22027748, 800.00,Green Recycling LTD,01563000,,Paper Recycling,Dry Recycling,H34SR000054024,
http://statistics.data.gov.uk/id/local-authority/29UP,Tonbridge & Malling Borough Council,5/10/2023,0022027749/1,22027749, 400.00,Green Recycling LTD,01563000,,Paper Recycling,Dry Recycling,H34SR000054024,
http://statistics.data.gov.uk/id/local-authority/29UP,Tonbridge & Malling Borough Council,5/10/2023,0022027750/1,22027750, 4800.00,Connells Residential Lettings,01668100,,Temporary Accommodation,Homelessness,C01AASYRI44051,
http://statistics.data.gov.uk/id/local-authority/29UP,Tonbridge & Malling Borough Council,5/10/2023,0022027751/1,22027751, 1500.00,Dover District Council,00028700,,Homelessness Reduction Initiat,Homelessness,C01AA000048019,220003324
http://statistics.data.gov.uk/id/local-authority/29UP,Tonbridge & Malling Borough Council,5/10/2023,0022027752/1,22027752, 84.00,DM Marketing Communications,01742000,,Abatement Initiatives,Street Scene,H23SD000044006,220003344
http://statistics.data.gov.uk/id/local-authority/29UP,Tonbridge & Malling Borough Council,5/10/2023,0022027753/1,22027753, 2089.20,DM Marketing Communications,01742000,,Marketing,Information & Publicity,D32MJ000044215,220003342
http://statistics.data.gov.uk/id/local-authority/29UP,Tonbridge & Malling Borough Council,5/10/2023,0022027754/1,22027754, 1347.50,Craemer UK LTD,01616400,,Initial Furniture & Equipment,Refuse Bins Growth/Replacement,P02DA000009906,220003339
http://statistics.data.gov.uk/id/local-authority/29UP,Tonbridge & Malling Borough Council,5/10/2023,0022027755/1,22027755, 4645.60,Countrystyle Group,00835900,781981681,Plastic Recycling,Dry Recycling,H34SR000054019,
http://statistics.data.gov.uk/id/local-authority/29UP,Tonbridge & Malling Borough Council,5/10/2023,0022027756/1,22027756, 2424.89,Town & Country Housing Group,01385400,,Other Expenses,Disabled Facilities Grant Mand,P03AC000009908,
http://statistics.data.gov.uk/id/local-authority/29UP,Tonbridge & Malling Borough Council,5/10/2023,0022027757/1,22027757, 2500.00,Dolphin Stairlifts,00698900,,Other Expenses,Disabled Facilities Grant Mand,P03AC000009908,
http://statistics.data.gov.uk/id/local-authority/29UP,Tonbridge & Malling Borough Council,5/10/2023,0022027758/1,22027758, 8885.37,Advanced Building & Maintenance Services,01887500,937054419,Other Expenses,Disabled Facilities Grant Mand,P03AC000009908,
http://statistics.data.gov.uk/id/local-authority/29UP,Tonbridge & Malling Borough Council,5/10/2023,0022027759/1,22027759, 1224.00,1st  Steps Housing Kent,01716100,,Temporary Accommodation,Homelessness,C01AA000044051,
http://statistics.data.gov.uk/id/local-authority/29UP,Tonbridge & Malling Borough Council,5/10/2023,0031019431/1,31019431, 5.15,Alfafado Ltd t/a Battery Station,01835100,,Stationery,Technical Sals&Overheads,D01AE000043003,310043018
http://statistics.data.gov.uk/id/local-authority/29UP,Tonbridge & Malling Borough Council,5/10/2023,0031019431/2,31019431, 5.42,Alfafado Ltd t/a Battery Station,01835100,,Purchases,Civil Contingencies,D33NA000040101,310043018
http://statistics.data.gov.uk/id/local-authority/29UP,Tonbridge & Malling Borough Council,5/10/2023,0031019431/3,31019431, 28.72,Alfafado Ltd t/a Battery Station,01835100,,Purchases,Civil Contingencies,D33NA000040101,310043018
http://statistics.data.gov.uk/id/local-authority/29UP,Tonbridge & Malling Borough Council,5/10/2023,0031019431/4,31019431, 8.22,Alfafado Ltd t/a Battery Station,01835100,,Purchases,Civil Contingencies,D33NA000040101,310043018
http://statistics.data.gov.uk/id/local-authority/29UP,Tonbridge & Malling Borough Council,5/10/2023,0031019432/3,31019432, 122.30,Kings Hill Garage Ltd,01546300,,Transport Repair & Maintenance,Parking Off-Street,E10HA000030103,
http://statistics.data.gov.uk/id/local-authority/29UP,Tonbridge & Malling Borough Council,5/10/2023,0031019432/4,31019432, 122.30,Kings Hill Garage Ltd,01546300,,Transport Repair & Maintenance,Parking Off-Street,E10HA000030103,
http://statistics.data.gov.uk/id/local-authority/29UP,Tonbridge & Malling Borough Council,5/10/2023,0031019433/3,31019433, 83.05,Kings Hill Garage Ltd,01546300,,Transport Repair & Maintenance,Parking Off-Street,E10HA000030103,
http://statistics.data.gov.uk/id/local-authority/29UP,Tonbridge & Malling Borough Council,5/10/2023,0031019433/4,31019433, 83.05,Kings Hill Garage Ltd,01546300,,Transport Repair & Maintenance,Parking On-Street,E10HD000030103,
http://statistics.data.gov.uk/id/local-authority/29UP,Tonbridge & Malling Borough Council,5/10/2023,0031019434/3,31019434, 18.92,Kings Hill Garage Ltd,01546300,,Transport Repair & Maintenance,Parking Off-Street,E10HA000030103,
http://statistics.data.gov.uk/id/local-authority/29UP,Tonbridge & Malling Borough Council,5/10/2023,0031019434/4,31019434, 18.91,Kings Hill Garage Ltd,01546300,,Transport Repair & Maintenance,Parking On-Street,E10HD000030103,
http://statistics.data.gov.uk/id/local-authority/29UP,Tonbridge & Malling Borough Council,5/10/2023,0031019435/3,31019435, 1155.00,Marston,01485000,,Adjudication & Enforcement Ser,Parking Off-Street,E10HA000044230,
http://statistics.data.gov.uk/id/local-authority/29UP,Tonbridge & Malling Borough Council,5/10/2023,0031019436/3,31019436, 65.69,Shell U.K. Oil Products Limited,01673300,,"Petrol, Diesel & Oil",Patrolling,B22LF000030106,
http://statistics.data.gov.uk/id/local-authority/29UP,Tonbridge & Malling Borough Council,5/10/2023,0031019436/4,31019436, 85.15,Shell U.K. Oil Products Limited,01673300,,"Petrol, Diesel & Oil",Parking Off-Street,E10HA000030106,
http://statistics.data.gov.uk/id/local-authority/29UP,Tonbridge & Malling Borough Council,5/10/2023,0031019436/5,31019436, 85.15,Shell U.K. Oil Products Limited,01673300,,"Petrol, Diesel & Oil",Parking On-Street,E10HD000030106,
http://statistics.data.gov.uk/id/local-authority/29UP,Tonbridge & Malling Borough Council,5/10/2023,0031019437/3,31019437, 2618.00,Tonbridge & Malling Leisure Trust,01469100,,Ticket Refunds - Lower Castle,Parking Off-Street,E10HAE01344199,
http://statistics.data.gov.uk/id/local-authority/29UP,Tonbridge & Malling Borough Council,5/10/2023,0031019440/1,31019440, 897.91,CDER Group,01773300,,Adjudication & Enforcement Ser,Parking Off-Street,E10HA000044230,
http://statistics.data.gov.uk/id/local-authority/29UP,Tonbridge & Malling Borough Council,5/10/2023,0032010196/3,32010196, 5250.00,G2 Recruitment Solutions,01786000,,Payment re Prev Yrs Cred Acc,Sundry Creditors PHEHS,J80TB000001101,
http://statistics.data.gov.uk/id/local-authority/29UP,Tonbridge & Malling Borough Council,5/10/2023,0032010197/3,32010197, 4500.00,Highgate Planning & Development Ltd,01838600,437493370,Application & Appeals,Development Management,A01AB000044194,
http://statistics.data.gov.uk/id/local-authority/29UP,Tonbridge & Malling Borough Council,5/10/2023,0032010198/3,32010198, 119.48,KH Recruitment Ltd,01738900,,Temporary Staff,Planning Sals&Overheads,D01AJDJ0111300,
http://statistics.data.gov.uk/id/local-authority/29UP,Tonbridge & Malling Borough Council,5/10/2023,0032010199/1,32010199, 182.07,KM Media Group Ltd,00053900,,Advertising General,Development Management,A01ABZ99944216,320003497
http://statistics.data.gov.uk/id/local-authority/29UP,Tonbridge & Malling Borough Council,5/10/2023,0032010200/1,32010200, 11400.00,MKA Architects LTD,01454300,,Application & Appeals,Development Management,A01AB000044194,320003503
http://statistics.data.gov.uk/id/local-authority/29UP,Tonbridge & Malling Borough Council,5/10/2023,0032010201/3,32010201, 1029.00,The Oyster Partnership,01196400,,Temporary Accommodation,Homelessness,C01AA000044051,
http://statistics.data.gov.uk/id/local-authority/29UP,Tonbridge & Malling Borough Council,5/10/2023,0032010202/3,32010202, 1392.88,The Oyster Partnership,01196400,,Temporary Staff,Planning Sals&Overheads,D01AJDJ0111300,
http://statistics.data.gov.uk/id/local-authority/29UP,Tonbridge & Malling Borough Council,5/10/2023,0032010203/3,32010203, 3705.00,Vivid Resourcing,01773700,,Temporary Staff,Planning Sals&Overheads,D01AJDJ0111300,
http://statistics.data.gov.uk/id/local-authority/29UP,Tonbridge & Malling Borough Council,5/10/2023,0032010204/1,32010204, 1913.30,Hays Specialist Recruitment Limited,01879200,773695871,Temporary Staff,Planning Sals&Overheads,D01AJDJ0111300,
http://statistics.data.gov.uk/id/local-authority/29UP,Tonbridge & Malling Borough Council,5/10/2023,0032010205/1,32010205, 2109.40,Hays Specialist Recruitment Limited,01879200,773695871,Temporary Staff,Planning Sals&Overheads,D01AJDJ0111300,
http://statistics.data.gov.uk/id/local-authority/29UP,Tonbridge & Malling Borough Council,5/10/2023,0032010206/1,32010206, 1762.25,Hays Specialist Recruitment Limited,01879200,773695871,Temporary Staff,Planning Sals&Overheads,D01AJDJ0111300,
http://statistics.data.gov.uk/id/local-authority/29UP,Tonbridge & Malling Borough Council,5/10/2023,0032010207/1,32010207, 1457.50,Hays Specialist Recruitment Limited,01879200,773695871,Temporary Staff,Planning Sals&Overheads,D01AJDJ0111300,
http://statistics.data.gov.uk/id/local-authority/29UP,Tonbridge & Malling Borough Council,5/10/2023,0032010208/1,32010208, 2082.90,Hays Specialist Recruitment Limited,01879200,773695871,Temporary Staff,Planning Sals&Overheads,D01AJDJ0111300,
http://statistics.data.gov.uk/id/local-authority/29UP,Tonbridge & Malling Borough Council,5/10/2023,0032010209/1,32010209, 1364.75,Hays Specialist Recruitment Limited,01879200,773695871,Temporary Staff,Planning Sals&Overheads,D01AJDJ0111300,
http://statistics.data.gov.uk/id/local-authority/29UP,Tonbridge & Malling Borough Council,5/10/2023,0032010210/1,32010210, 1612.50,Carrington West Limited,01844500,,Temporary Staff,Planning Sals&Overheads,D01AJDJ0111300,
http://statistics.data.gov.uk/id/local-authority/29UP,Tonbridge & Malling Borough Council,5/10/2023,0041035483/1,41035483, 1000.00,Kent County Council,00322500,,Tracing Services,Local Revenue & NNDR Collect,D41QA000044091,410032401
http://statistics.data.gov.uk/id/local-authority/29UP,Tonbridge & Malling Borough Council,5/10/2023,0041035488/1,41035488, 118.35,Maidstone Borough Council,01173700,,Bailiffs Commission,Local Revenue & NNDR Collect,D41QA000044075,
http://statistics.data.gov.uk/id/local-authority/29UP,Tonbridge & Malling Borough Council,5/10/2023,0041035489/1,41035489, 2111.42,Maidstone Borough Council,01173700,,Bailiffs Commission,Local Revenue & NNDR Collect,D41QA000044075,
http://statistics.data.gov.uk/id/local-authority/29UP,Tonbridge & Malling Borough Council,5/10/2023,0041035490/1,41035490, 2858.17,Rundle & Co Ltd,00087200,,Bailiffs Commission,Local Revenue & NNDR Collect,D41QA000044075,
http://statistics.data.gov.uk/id/local-authority/29UP,Tonbridge & Malling Borough Council,5/10/2023,0041035491/1,41035491, 110.25,Adelante Software Limited,01393800,812115871,Credit Card Commission,Banking Arrangements,D43QK000044082,
http://statistics.data.gov.uk/id/local-authority/29UP,Tonbridge & Malling Borough Council,5/10/2023,0041035492/1,41035492, 47.98,KCS Education/CSG Global Education Ltd,01897200,408845925,Stationery,Finance Sals&Overheads,D01AF000043003,
http://statistics.data.gov.uk/id/local-authority/29UP,Tonbridge & Malling Borough Council,5/15/2023,0041035496/1,41035496, 15.00,BNP Paribas,01360500,,Bank Charges,Banking Arrangements,D43QK000044222,
http://statistics.data.gov.uk/id/local-authority/29UP,Tonbridge & Malling Borough Council,5/17/2023,0011046095/1,11046095, 4437.50,HazleMcCormack Young LLP,01793100,,Payment re Prev Yrs Cred Acc,Sundry Creditors Admin & Prop,J80TA000001101,
http://statistics.data.gov.uk/id/local-authority/29UP,Tonbridge & Malling Borough Council,5/17/2023,0011046096/1,11046096, 193.27,Biffa Waste Services Ltd,01284500,,Trade Refuse Charges,Cleaning & Security,D21FD000044008,
http://statistics.data.gov.uk/id/local-authority/29UP,Tonbridge & Malling Borough Council,5/17/2023,0011046097/1,11046097, 127.80,Biffa Waste Services Ltd,01284500,,Trade Refuse Charges,Cleaning & Security,D21FD000044008,
http://statistics.data.gov.uk/id/local-authority/29UP,Tonbridge & Malling Borough Council,5/17/2023,0011046098/1,11046098, 158.13,Biffa Waste Services Ltd,01284500,,Trade Refuse Charges,Cleaning & Security,D21FD000044008,
http://statistics.data.gov.uk/id/local-authority/29UP,Tonbridge & Malling Borough Council,5/17/2023,0011046099/1,11046099, 48.72,Biffa Waste Services Ltd,01284500,,Trade Refuse Charges,Cleaning & Security,D21FD000044008,
http://statistics.data.gov.uk/id/local-authority/29UP,Tonbridge & Malling Borough Council,5/17/2023,0011046100/1,11046100, 48.72,Biffa Waste Services Ltd,01284500,,Trade Refuse Charges,Cleaning & Security,D21FD000044008,
http://statistics.data.gov.uk/id/local-authority/29UP,Tonbridge & Malling Borough Council,5/17/2023,0011046101/1,11046101, 166.80,Biffa Waste Services Ltd,01284500,,Trade Refuse Charges,Cleaning & Security,D21FD000044008,
http://statistics.data.gov.uk/id/local-authority/29UP,Tonbridge & Malling Borough Council,5/17/2023,0011046102/1,11046102, 105.00,Guardian Security & Fire Ltd,01899300,,BRREP Servicing - FireAlarmSys,Larkfield Leisure Centre,M15HDP20001937,
http://statistics.data.gov.uk/id/local-authority/29UP,Tonbridge & Malling Borough Council,5/17/2023,0011046103/1,11046103, 1130.64,The Oyster Partnership,01196400,,Temporary Staff,Admin & Prop Sals&Overheads,D01AADA1111300,
http://statistics.data.gov.uk/id/local-authority/29UP,Tonbridge & Malling Borough Council,5/17/2023,0011046104/1,11046104, 2889.00,Local Government Information Unit,01484200,,Subscriptions,Committee Administration,D29LL000047002,
http://statistics.data.gov.uk/id/local-authority/29UP,Tonbridge & Malling Borough Council,5/17/2023,0011046105/1,11046105, 2057.00,Loxton Installations Ltd,01278800,,Payment re Prev Yrs Cred Acc,Sundry Creditors Admin & Prop,J80TA000001101,
http://statistics.data.gov.uk/id/local-authority/29UP,Tonbridge & Malling Borough Council,5/17/2023,0011046106/1,11046106, 243.69,Ricoh UK Ltd,01402300,,Maintenance - General,Printing,D22GA000040135,
http://statistics.data.gov.uk/id/local-authority/29UP,Tonbridge & Malling Borough Council,5/17/2023,0011046107/1,11046107, 722.00,Disclosure & Barring Service,00865900,,Professional Fees,Licences - Fee Paying,H27SH000044001,
http://statistics.data.gov.uk/id/local-authority/29UP,Tonbridge & Malling Borough Council,5/17/2023,0011046108/1,11046108, 2123.44,GSF SANDYLIGHT LTD,01705300,,Temporary Staff,Admin & Prop Sals&Overheads,D01AADA0511300,
http://statistics.data.gov.uk/id/local-authority/29UP,Tonbridge & Malling Borough Council,5/17/2023,0011046109/1,11046109, 650.00,Matt Stephens,01802100,,Purchases,Conduct of Elections,D31MG000040101,
http://statistics.data.gov.uk/id/local-authority/29UP,Tonbridge & Malling Borough Council,5/17/2023,0011046110/1,11046110, 289.60,Rase Productions Ltd,01796700,,Purchases,Conduct of Elections,D31MG000040101,
http://statistics.data.gov.uk/id/local-authority/29UP,Tonbridge & Malling Borough Council,5/17/2023,0011046111/1,11046111, 112.00,East Sussex Fire Ltd,01843100,,Repairs & Mtce to Buildings,Homelessness,C01AATNHS20101,110069587
http://statistics.data.gov.uk/id/local-authority/29UP,Tonbridge & Malling Borough Council,5/17/2023,0011046112/1,11046112, 3500.00,Kent County Council,00322500,,Subscriptions,Committee Administration,D29LL000047002,110070197
http://statistics.data.gov.uk/id/local-authority/29UP,Tonbridge & Malling Borough Council,5/17/2023,0011046113/1,11046113, 180.00,Glaze-Tech Services Ltd,00779500,,BRREP Window/door repairs,Larkfield Leisure Centre,M15HDP20001919,110070142
http://statistics.data.gov.uk/id/local-authority/29UP,Tonbridge & Malling Borough Council,5/17/2023,0011046114/1,11046114, 3060.00,Fuller Long Planning and Heritage Consul,01883200,,Professional Fees,Land Review,D40PSTON144001,110070015
http://statistics.data.gov.uk/id/local-authority/29UP,Tonbridge & Malling Borough Council,5/17/2023,0011046115/1,11046115, 364.77,Glaze-Tech Services Ltd,00779500,,BRREP Resp - Vandal / Break-In,Tonbridge Farm Pavillion,M15HGP50001998,110070144
http://statistics.data.gov.uk/id/local-authority/29UP,Tonbridge & Malling Borough Council,5/17/2023,0011046116/1,11046116, 1064.85,Broadwater Technologies,01534500,,BRREP Plant renewals,Larkfield Leisure Centre,M15HDP20001909,110070100
http://statistics.data.gov.uk/id/local-authority/29UP,Tonbridge & Malling Borough Council,5/17/2023,0011046117/1,11046117, 190.00,Loxton Installations Ltd,01278800,,BRREP IEE Testing,Larkfield Leisure Centre,M15HDP30001991,110069462
http://statistics.data.gov.uk/id/local-authority/29UP,Tonbridge & Malling Borough Council,5/17/2023,0011046118/1,11046118, 233.00,Loxton Installations Ltd,01278800,,BRREP Serv Internal Lighting,Larkfield Leisure Centre,M15HDP20001957,110070086
http://statistics.data.gov.uk/id/local-authority/29UP,Tonbridge & Malling Borough Council,5/17/2023,0011046119/1,11046119, 210.00,Loxton Installations Ltd,01278800,,BRREP Serv Internal Lighting,Gibson Building East,M15KGP20001957,110069763
http://statistics.data.gov.uk/id/local-authority/29UP,Tonbridge & Malling Borough Council,5/17/2023,0011046120/1,11046120, 182.00,Loxton Installations Ltd,01278800,,BRREP Serv Internal Lighting,Gibson Building West,M15KBP20001957,110069781
http://statistics.data.gov.uk/id/local-authority/29UP,Tonbridge & Malling Borough Council,5/17/2023,0011046121/1,11046121, 551.00,Loxton Installations Ltd,01278800,,BRREP Serv Internal Lighting,PC - General,M15JAP20001957,110069788
http://statistics.data.gov.uk/id/local-authority/29UP,Tonbridge & Malling Borough Council,5/17/2023,0011046122/1,11046122, 248.00,Loxton Installations Ltd,01278800,,BRREP Servicing - Squash Court,Leis Man Poult Wood Golf Centr,M15HEP20001958,110069856
http://statistics.data.gov.uk/id/local-authority/29UP,Tonbridge & Malling Borough Council,5/17/2023,0011046123/1,11046123, 238.00,Loxton Installations Ltd,01278800,,BRREP Servicing-entrance doors,Larkfield Leisure Centre,M15HDP20001927,110069875
http://statistics.data.gov.uk/id/local-authority/29UP,Tonbridge & Malling Borough Council,5/17/2023,0011046125/1,11046125, 794.00,Loxton Installations Ltd,01278800,,BRREP Response - General,Leybourne Lakes Country Park,M15HLP50001997,110069876
http://statistics.data.gov.uk/id/local-authority/29UP,Tonbridge & Malling Borough Council,5/17/2023,0011046126/1,11046126, 186.00,Loxton Installations Ltd,01278800,,BRREP Servicing - Heating Syst,Leis Man Poult Wood Golf Centr,M15HEP20001934,110069956
http://statistics.data.gov.uk/id/local-authority/29UP,Tonbridge & Malling Borough Council,5/17/2023,0011046127/1,11046127, 186.00,Loxton Installations Ltd,01278800,,BRREP Servicing - Squash Court,Leis Man Poult Wood Golf Centr,M15HEP20001958,110069947
http://statistics.data.gov.uk/id/local-authority/29UP,Tonbridge & Malling Borough Council,5/17/2023,0011046128/1,11046128, 377.00,Loxton Installations Ltd,01278800,,BRREP IEE Testing,Larkfield Leisure Centre,M15HDP30001991,110070005
http://statistics.data.gov.uk/id/local-authority/29UP,Tonbridge & Malling Borough Council,5/17/2023,0011046129/1,11046129, 203.00,Loxton Installations Ltd,01278800,,BRREP Serv Internal Lighting,Tonbridge Castle / CAB,M15KFP20001957,110070036
http://statistics.data.gov.uk/id/local-authority/29UP,Tonbridge & Malling Borough Council,5/17/2023,0011046130/1,11046130, 255.00,Loxton Installations Ltd,01278800,,BRREP Servicing - pool plant,Tonbridge Swimming Pool,M15HBP20001910,110070090
http://statistics.data.gov.uk/id/local-authority/29UP,Tonbridge & Malling Borough Council,5/17/2023,0011046131/1,11046131, 139.00,Loxton Installations Ltd,01278800,,BRREP Response - General,Leybourne Lakes Country Park,M15HLP50001997,110069821
http://statistics.data.gov.uk/id/local-authority/29UP,Tonbridge & Malling Borough Council,5/17/2023,0011046132/1,11046132, 1506.00,Loxton Installations Ltd,01278800,,BRREP Servicing - ext lighting,Gibson Building East,M15KGP20001941,110070154
http://statistics.data.gov.uk/id/local-authority/29UP,Tonbridge & Malling Borough Council,5/17/2023,0011046133/1,11046133, 445.00,Loxton Installations Ltd,01278800,,BRREP Response - General,Tonbridge Castle / CAB,M15KFP50001997,110070161
http://statistics.data.gov.uk/id/local-authority/29UP,Tonbridge & Malling Borough Council,5/17/2023,0011046134/1,11046134, 182.00,Loxton Installations Ltd,01278800,,BRREP Window/door repairs,Larkfield Leisure Centre,M15HDP20001919,110070151
http://statistics.data.gov.uk/id/local-authority/29UP,Tonbridge & Malling Borough Council,5/17/2023,0011046135/1,11046135, 670.00,Loxton Installations Ltd,01278800,,BRREP Serv Internal Lighting,Gibson Building West,M15KBP20001957,110070153
http://statistics.data.gov.uk/id/local-authority/29UP,Tonbridge & Malling Borough Council,5/17/2023,0011046136/1,11046136, 143.00,Loxton Installations Ltd,01278800,,BRREP Servicing-CarParkLightg,Larkfield Leisure Centre,M15HDP20001944,110070155
http://statistics.data.gov.uk/id/local-authority/29UP,Tonbridge & Malling Borough Council,5/17/2023,0011046137/1,11046137, 5454.00,Loxton Installations Ltd,01278800,,BRREP Servicing-CarParkLightg,Larkfield Leisure Centre,M15HDP20001944,110070080
http://statistics.data.gov.uk/id/local-authority/29UP,Tonbridge & Malling Borough Council,5/17/2023,0011046138/1,11046138, 273.00,Loxton Installations Ltd,01278800,,BRREP Servicing - ext lighting,Tonbridge Castle / CAB,M15KFP20001941,110070195
http://statistics.data.gov.uk/id/local-authority/29UP,Tonbridge & Malling Borough Council,5/17/2023,0011046139/1,11046139, 14174.00,Coolburn Air Conditioning Ltd,01137900,,BRREP Servicing - air handling,Larkfield Leisure Centre,M15HDP20001936,110070137
http://statistics.data.gov.uk/id/local-authority/29UP,Tonbridge & Malling Borough Council,5/17/2023,0011046140/1,11046140, 831.50,Willow Pumps Ltd,00114100,,BRREP Servicing - Pumping Stn,Ton Sportsgrnd Bldgs / Toilets,M15HCP20001931,110070170
http://statistics.data.gov.uk/id/local-authority/29UP,Tonbridge & Malling Borough Council,5/17/2023,0011046141/1,11046141, 615.00,4 Seasons Event Services,00418000,,Purchases,Conduct of Elections,D31MG000040101,110070010
http://statistics.data.gov.uk/id/local-authority/29UP,Tonbridge & Malling Borough Council,5/17/2023,0011046142/1,11046142, 130.00,Local Land Charges Institute,01025500,,Professional Membership,Legal Sals&Overheads,D01ARDR0347001,110070175
http://statistics.data.gov.uk/id/local-authority/29UP,Tonbridge & Malling Borough Council,5/17/2023,0011046143/1,11046143, 1616.00,Loxton Installations Ltd,01278800,,BRREP Serv Internal Lighting,Gibson Building East,M15KGP20001957,110069629
http://statistics.data.gov.uk/id/local-authority/29UP,Tonbridge & Malling Borough Council,5/17/2023,0011046144/1,11046144, 60.00,Willow Pumps Ltd,00114100,,BRREP Servicing - Pumping Stn,Tonbridge Swimming Pool,M15HBP20001931,110069721
http://statistics.data.gov.uk/id/local-authority/29UP,Tonbridge & Malling Borough Council,5/17/2023,0011046144/2,11046144, 120.00,Willow Pumps Ltd,00114100,,BRREP Servicing - Pumping Stn,Ton Sportsgrnd Bldgs / Toilets,M15HCP20001931,110069721
http://statistics.data.gov.uk/id/local-authority/29UP,Tonbridge & Malling Borough Council,5/17/2023,0011046144/3,11046144, 120.00,Willow Pumps Ltd,00114100,,BRREP Servicing - Pumping Stn,Vale Rise Depot,M15LCP20001931,110069721
http://statistics.data.gov.uk/id/local-authority/29UP,Tonbridge & Malling Borough Council,5/17/2023,0012008729/1,12008729, 3.00,O2 UK Ltd,01268000,,Telephones - General,Open Spaces & Amenity Areas,B22LE000045010,
http://statistics.data.gov.uk/id/local-authority/29UP,Tonbridge & Malling Borough Council,5/17/2023,0012008729/10,12008729, 9.60,O2 UK Ltd,01268000,,Mobile Telephones,Technical Sals&Overheads,D01AEDE0245013,
http://statistics.data.gov.uk/id/local-authority/29UP,Tonbridge & Malling Borough Council,5/17/2023,0012008729/11,12008729, 42.00,O2 UK Ltd,01268000,,Mobile Telephones,Technical Sals&Overheads,D01AEDE0445013,
http://statistics.data.gov.uk/id/local-authority/29UP,Tonbridge & Malling Borough Council,5/17/2023,0012008729/12,12008729, 3.10,O2 UK Ltd,01268000,,Mobile Telephones,Technical Sals&Overheads,D01AEDE0545013,
http://statistics.data.gov.uk/id/local-authority/29UP,Tonbridge & Malling Borough Council,5/17/2023,0012008729/13,12008729, 12.00,O2 UK Ltd,01268000,,Mobile Telephones,Finance Sals&Overheads,D01AFDF0045013,
http://statistics.data.gov.uk/id/local-authority/29UP,Tonbridge & Malling Borough Council,5/17/2023,0012008729/14,12008729, 6.00,O2 UK Ltd,01268000,,Mobile Telephones,Finance Sals&Overheads,D01AFDF0945013,
http://statistics.data.gov.uk/id/local-authority/29UP,Tonbridge & Malling Borough Council,5/17/2023,0012008729/15,12008729, 12.00,O2 UK Ltd,01268000,,Mobile Telephones,St Scene & Leis Sals&Overheads,D01AGDG0045013,
http://statistics.data.gov.uk/id/local-authority/29UP,Tonbridge & Malling Borough Council,5/17/2023,0012008729/16,12008729, 12.00,O2 UK Ltd,01268000,,Mobile Telephones,St Scene & Leis Sals&Overheads,D01AGDG0145013,
http://statistics.data.gov.uk/id/local-authority/29UP,Tonbridge & Malling Borough Council,5/17/2023,0012008729/17,12008729, 9.00,O2 UK Ltd,01268000,,Mobile Telephones,St Scene & Leis Sals&Overheads,D01AGDG0445013,
http://statistics.data.gov.uk/id/local-authority/29UP,Tonbridge & Malling Borough Council,5/17/2023,0012008729/18,12008729, 36.00,O2 UK Ltd,01268000,,Mobile Telephones,St Scene & Leis Sals&Overheads,D01AGDG2045013,
http://statistics.data.gov.uk/id/local-authority/29UP,Tonbridge & Malling Borough Council,5/17/2023,0012008729/19,12008729, 9.00,O2 UK Ltd,01268000,,Mobile Telephones,Planning Sals&Overheads,D01AJDJ0045013,
http://statistics.data.gov.uk/id/local-authority/29UP,Tonbridge & Malling Borough Council,5/17/2023,0012008729/2,12008729, 3.00,O2 UK Ltd,01268000,,Mobile Telephones,Admin & Prop Sals&Overheads,D01AADA0045013,
http://statistics.data.gov.uk/id/local-authority/29UP,Tonbridge & Malling Borough Council,5/17/2023,0012008729/20,12008729, 12.20,O2 UK Ltd,01268000,,Mobile Telephones,Planning Sals&Overheads,D01AJDJ0245013,
http://statistics.data.gov.uk/id/local-authority/29UP,Tonbridge & Malling Borough Council,5/17/2023,0012008729/21,12008729, 6.00,O2 UK Ltd,01268000,,Mobile Telephones,Legal Sals&Overheads,D01ARDR0045013,
http://statistics.data.gov.uk/id/local-authority/29UP,Tonbridge & Malling Borough Council,5/17/2023,0012008729/22,12008729, 12.00,O2 UK Ltd,01268000,,Mobile Telephones,Legal Sals&Overheads,D01ARDR0445013,
http://statistics.data.gov.uk/id/local-authority/29UP,Tonbridge & Malling Borough Council,5/17/2023,0012008729/23,12008729, 3.00,O2 UK Ltd,01268000,,Mobile Telephones,Legal Sals&Overheads,D01ARDR0745013,
http://statistics.data.gov.uk/id/local-authority/29UP,Tonbridge & Malling Borough Council,5/17/2023,0012008729/24,12008729, 3.00,O2 UK Ltd,01268000,,Mobile Telephones,Env Hlth & Hsg Sals&Overheads,D01AVDV0045013,
http://statistics.data.gov.uk/id/local-authority/29UP,Tonbridge & Malling Borough Council,5/17/2023,0012008729/25,12008729, 9.00,O2 UK Ltd,01268000,,Mobile Telephones,Env Hlth & Hsg Sals&Overheads,D01AVDV0145013,
http://statistics.data.gov.uk/id/local-authority/29UP,Tonbridge & Malling Borough Council,5/17/2023,0012008729/26,12008729, 6.00,O2 UK Ltd,01268000,,Mobile Telephones,Env Hlth & Hsg Sals&Overheads,D01AVDV0345013,
http://statistics.data.gov.uk/id/local-authority/29UP,Tonbridge & Malling Borough Council,5/17/2023,0012008729/27,12008729, 3.00,O2 UK Ltd,01268000,,Mobile Telephones,Env Hlth & Hsg Sals&Overheads,D01AVDV0745013,
http://statistics.data.gov.uk/id/local-authority/29UP,Tonbridge & Malling Borough Council,5/17/2023,0012008729/28,12008729, 6.00,O2 UK Ltd,01268000,,Mobile Telephones,Env Hlth & Hsg Sals&Overheads,D01AVDV0945013,
http://statistics.data.gov.uk/id/local-authority/29UP,Tonbridge & Malling Borough Council,5/17/2023,0012008729/29,12008729, 9.90,O2 UK Ltd,01268000,,Mobile Telephones,Customer Services,D23CS000045013,
http://statistics.data.gov.uk/id/local-authority/29UP,Tonbridge & Malling Borough Council,5/17/2023,0012008729/3,12008729, 3.00,O2 UK Ltd,01268000,,Mobile Telephones,Admin & Prop Sals&Overheads,D01AADA1045013,
http://statistics.data.gov.uk/id/local-authority/29UP,Tonbridge & Malling Borough Council,5/17/2023,0012008729/30,12008729, 3.00,O2 UK Ltd,01268000,,Mobile Telephones,Tonbridge Gateway,D23TG000045013,
http://statistics.data.gov.uk/id/local-authority/29UP,Tonbridge & Malling Borough Council,5/17/2023,0012008729/31,12008729, 627.00,O2 UK Ltd,01268000,,Leased Lines & Modems,Information Technology,D27KD000045011,
http://statistics.data.gov.uk/id/local-authority/29UP,Tonbridge & Malling Borough Council,5/17/2023,0012008729/32,12008729, 3.00,O2 UK Ltd,01268000,,Mobile Telephones,Mayoral & Other Member Support,D29LX000045013,
http://statistics.data.gov.uk/id/local-authority/29UP,Tonbridge & Malling Borough Council,5/17/2023,0012008729/33,12008729, 3.00,O2 UK Ltd,01268000,,Emergency Out of Hours Recharg,Refuse Collection,H20SA000045030,
http://statistics.data.gov.uk/id/local-authority/29UP,Tonbridge & Malling Borough Council,5/17/2023,0012008729/34,12008729, 3.00,O2 UK Ltd,01268000,,Emergency Out of Hours Recharg,Street Scene,H23SD000045030,
http://statistics.data.gov.uk/id/local-authority/29UP,Tonbridge & Malling Borough Council,5/17/2023,0012008729/4,12008729, 9.00,O2 UK Ltd,01268000,,Mobile Telephones,Admin & Prop Sals&Overheads,D01AADA1245013,
http://statistics.data.gov.uk/id/local-authority/29UP,Tonbridge & Malling Borough Council,5/17/2023,0012008729/5,12008729, 3.00,O2 UK Ltd,01268000,,Mobile Telephones,Chief Exec Sals&Overheads,D01ACDC0045013,
http://statistics.data.gov.uk/id/local-authority/29UP,Tonbridge & Malling Borough Council,5/17/2023,0012008729/6,12008729, 3.00,O2 UK Ltd,01268000,,Mobile Telephones,Chief Exec Sals&Overheads,D01ACDC0145013,
http://statistics.data.gov.uk/id/local-authority/29UP,Tonbridge & Malling Borough Council,5/17/2023,0012008729/7,12008729, 3.00,O2 UK Ltd,01268000,,Mobile Telephones,Chief Exec Sals&Overheads,D01ACDC0245013,
http://statistics.data.gov.uk/id/local-authority/29UP,Tonbridge & Malling Borough Council,5/17/2023,0012008729/8,12008729, 3.00,O2 UK Ltd,01268000,,Mobile Telephones,Technical Sals&Overheads,D01AEDE0045013,
http://statistics.data.gov.uk/id/local-authority/29UP,Tonbridge & Malling Borough Council,5/17/2023,0012008729/9,12008729, 6.00,O2 UK Ltd,01268000,,Mobile Telephones,Technical Sals&Overheads,D01AEDE0145013,
http://statistics.data.gov.uk/id/local-authority/29UP,Tonbridge & Malling Borough Council,5/17/2023,0012008730/1,12008730, 2.00,CCS Media Ltd,00018000,,Purchases,Env Hlth & Hsg Sals&Overheads,D01AVDV0740101,410032410
http://statistics.data.gov.uk/id/local-authority/29UP,Tonbridge & Malling Borough Council,5/17/2023,0012008730/2,12008730, 9.99,CCS Media Ltd,00018000,,Purchases,Env Hlth & Hsg Sals&Overheads,D01AVDV0740101,410032410
http://statistics.data.gov.uk/id/local-authority/29UP,Tonbridge & Malling Borough Council,5/17/2023,0012008731/1,12008731, 2061.24,NTT Cloud Communications UK Ltd,01794600,,Software Hire & Support,Information Technology,D27KD000044059,110069968
http://statistics.data.gov.uk/id/local-authority/29UP,Tonbridge & Malling Borough Council,5/17/2023,0012008732/1,12008732, 9008.12,NTT Cloud Communications UK Ltd,01794600,,Software Hire & Support,Information Technology,D27KD000044059,
http://statistics.data.gov.uk/id/local-authority/29UP,Tonbridge & Malling Borough Council,5/17/2023,0021038555/1,21038555, 1543.04,Landscape Services Ltd,00057600,,Maintenance of Grounds,Tonbridge Castle Grounds,B22LB000020402,210057184
http://statistics.data.gov.uk/id/local-authority/29UP,Tonbridge & Malling Borough Council,5/17/2023,0021038556/3,21038556, 38.24,B&Q/Screwfix Direct(TradeUKAccount),00141300,,Purchases,Open Spaces & Amenity Areas,B22LE000040101,
http://statistics.data.gov.uk/id/local-authority/29UP,Tonbridge & Malling Borough Council,5/17/2023,0021038557/1,21038557, 600.00,SWS Countryside & Landscape,01567200,,Health & Safety - Trees,Countryside/Woodland Mgt,B22LG000044045,
http://statistics.data.gov.uk/id/local-authority/29UP,Tonbridge & Malling Borough Council,5/17/2023,0021038558/1,21038558, 700.00,SWS Countryside & Landscape,01567200,,Health & Safety - Trees,Countryside/Woodland Mgt,B22LG000044045,210057176
http://statistics.data.gov.uk/id/local-authority/29UP,Tonbridge & Malling Borough Council,5/17/2023,0021038559/1,21038559, 450.00,SWS Countryside & Landscape,01567200,,Health & Safety - Trees,Countryside/Woodland Mgt,B22LG000044045,210057177
http://statistics.data.gov.uk/id/local-authority/29UP,Tonbridge & Malling Borough Council,5/17/2023,0021038560/1,21038560, 797.00,Streetmaster (South Wales) Ltd,00222100,,Payment re Prev Yrs Cred Acc,Sundry Creditors SSLTS,J80TL000001101,
http://statistics.data.gov.uk/id/local-authority/29UP,Tonbridge & Malling Borough Council,5/17/2023,0021038561/1,21038561, 796.25,CJS Plants LTD,01596000,,Payment re Prev Yrs Cred Acc,Sundry Creditors SSLTS,J80TL000001101,
http://statistics.data.gov.uk/id/local-authority/29UP,Tonbridge & Malling Borough Council,5/17/2023,0021038562/1,21038562, 280.00,Burslem Memorials Ltd,01013400,,Maintenance of Grounds,Cemetery,B26MP000020402,210057209
http://statistics.data.gov.uk/id/local-authority/29UP,Tonbridge & Malling Borough Council,5/17/2023,0021038563/1,21038563, 91.00,B&Q/Screwfix Direct(TradeUKAccount),00141300,,Purchases,Open Spaces & Amenity Areas,B22LE000040101,
http://statistics.data.gov.uk/id/local-authority/29UP,Tonbridge & Malling Borough Council,5/17/2023,0021038564/1,21038564, 750.00,SWS Countryside & Landscape,01567200,,Health & Safety - Trees,Countryside/Woodland Mgt,B22LG000044045,210057218
http://statistics.data.gov.uk/id/local-authority/29UP,Tonbridge & Malling Borough Council,5/17/2023,0021038565/3,21038565, 330.00,Streetmaster (South Wales) Ltd,00222100,,Payment re Prev Yrs Cred Acc,Sundry Creditors SSLTS,J80TL000001101,
http://statistics.data.gov.uk/id/local-authority/29UP,Tonbridge & Malling Borough Council,5/17/2023,0021038566/3,21038566, 842.00,Streetmaster (South Wales) Ltd,00222100,,Payment re Prev Yrs Cred Acc,Sundry Creditors SSLTS,J80TL000001101,
http://statistics.data.gov.uk/id/local-authority/29UP,Tonbridge & Malling Borough Council,5/17/2023,0021038567/1,21038567, 535.82,Landscape Services Ltd,00057600,,Maintenance of Grounds,Tonbridge Castle Grounds,B22LB000020402,210057040
http://statistics.data.gov.uk/id/local-authority/29UP,Tonbridge & Malling Borough Council,5/17/2023,0021038568/1,21038568, 648.05,Landscape Services Ltd,00057600,,Payment re Prev Yrs Cred Acc,Sundry Creditors SSLTS,J80TL000001101,
http://statistics.data.gov.uk/id/local-authority/29UP,Tonbridge & Malling Borough Council,5/17/2023,0021038570/1,21038570, 8.75,Scottish Water Business Stream Ltd,01641100,,Sewerage Charges,Cemetery,B26MP000024003,
http://statistics.data.gov.uk/id/local-authority/29UP,Tonbridge & Malling Borough Council,5/17/2023,0022027760/1,22027760, 1080.90,Lucy and Martin Recycling LTD,01694200,,Vehicle Licences,Dry Recycling,H34SR000030105,
http://statistics.data.gov.uk/id/local-authority/29UP,Tonbridge & Malling Borough Council,5/17/2023,0022027761/1,22027761, 490.00,Countrystyle Group,00835900,781981681,Collection of Card,Dry Recycling,H34SR000054008,
http://statistics.data.gov.uk/id/local-authority/29UP,Tonbridge & Malling Borough Council,5/17/2023,0022027762/1,22027762, 500.00,WRM Property Services,01878100,,Homelessness Reduction Initiat,Homelessness,C01AA000048019,
http://statistics.data.gov.uk/id/local-authority/29UP,Tonbridge & Malling Borough Council,5/17/2023,0022027763/1,22027763, 10630.00,Dover District Council,00028700,,Choice Based Lettings,Housing Register,C12FC000054021,220003330
http://statistics.data.gov.uk/id/local-authority/29UP,Tonbridge & Malling Borough Council,5/17/2023,0022027764/1,22027764, 10.17,REDACTED PERSONAL DATA,01773200,,Repairs & Mtce to Buildings,Homelessness,C01AATNHS20101,
http://statistics.data.gov.uk/id/local-authority/29UP,Tonbridge & Malling Borough Council,5/17/2023,0022027765/1,22027765, 660.00,WRM Property Services,01878100,,Homelessness Reduction Initiat,Homelessness,C01AA000048019,
http://statistics.data.gov.uk/id/local-authority/29UP,Tonbridge & Malling Borough Council,5/17/2023,0031019441/1,31019441, 816.73,Royal British Legion Industries Ltd,00139700,,Car Parking Action Plan,Parking On-Street,E10HD000020801,310043015
http://statistics.data.gov.uk/id/local-authority/29UP,Tonbridge & Malling Borough Council,5/17/2023,0031019442/3,31019442, 27.48,B&Q/Screwfix Direct(TradeUKAccount),00141300,,Premises Repairs & Maintenance,Parking Off-Street,E10HAE00620601,
http://statistics.data.gov.uk/id/local-authority/29UP,Tonbridge & Malling Borough Council,5/17/2023,0031019443/1,31019443, 38.40,The Safety Supply Company,01719500,,Purchases,Civil Contingencies,D33NA000040101,310043017
http://statistics.data.gov.uk/id/local-authority/29UP,Tonbridge & Malling Borough Council,5/17/2023,0031019443/2,31019443, 15.00,The Safety Supply Company,01719500,,Purchases,Civil Contingencies,D33NA000040101,310043017
http://statistics.data.gov.uk/id/local-authority/29UP,Tonbridge & Malling Borough Council,5/17/2023,0031019443/3,31019443, 9.60,The Safety Supply Company,01719500,,Purchases,Civil Contingencies,D33NA000040101,310043017
http://statistics.data.gov.uk/id/local-authority/29UP,Tonbridge & Malling Borough Council,5/17/2023,0031019443/4,31019443, 0.99,The Safety Supply Company,01719500,,Purchases,Civil Contingencies,D33NA000040101,310043017
http://statistics.data.gov.uk/id/local-authority/29UP,Tonbridge & Malling Borough Council,5/17/2023,0031019443/5,31019443, 17.50,The Safety Supply Company,01719500,,Purchases,Civil Contingencies,D33NA000040101,310043017
http://statistics.data.gov.uk/id/local-authority/29UP,Tonbridge & Malling Borough Council,5/17/2023,0031019446/1,31019446, 36.99,B&Q/Screwfix Direct(TradeUKAccount),00141300,,Purchases,Boro Highways & Emergency Oper,E01AA000040101,
http://statistics.data.gov.uk/id/local-authority/29UP,Tonbridge & Malling Borough Council,5/17/2023,0031019449/7,31019449, 1900.00,Lighting Efficiency Design Services Ltd,01872200,,Payment re Prev Yrs Cred Acc,Sundry Creditors SSLTS,J80TL000001101,
http://statistics.data.gov.uk/id/local-authority/29UP,Tonbridge & Malling Borough Council,5/17/2023,0031019450/1,31019450, 18.70,Ark Trading/Goldstar,01607200,113179830,Uniforms,Parking Off-Street,E10HA000042002,310043022
http://statistics.data.gov.uk/id/local-authority/29UP,Tonbridge & Malling Borough Council,5/17/2023,0031019450/10,31019450, 17.51,Ark Trading/Goldstar,01607200,113179830,Uniforms,Parking On-Street,E10HD000042002,310043022
http://statistics.data.gov.uk/id/local-authority/29UP,Tonbridge & Malling Borough Council,5/17/2023,0031019450/2,31019450, 26.58,Ark Trading/Goldstar,01607200,113179830,Uniforms,Parking Off-Street,E10HA000042002,310043022
http://statistics.data.gov.uk/id/local-authority/29UP,Tonbridge & Malling Borough Council,5/17/2023,0031019450/3,31019450, 30.04,Ark Trading/Goldstar,01607200,113179830,Uniforms,Parking Off-Street,E10HA000042002,310043022
http://statistics.data.gov.uk/id/local-authority/29UP,Tonbridge & Malling Borough Council,5/17/2023,0031019450/4,31019450, 15.50,Ark Trading/Goldstar,01607200,113179830,Uniforms,Parking Off-Street,E10HA000042002,310043022
http://statistics.data.gov.uk/id/local-authority/29UP,Tonbridge & Malling Borough Council,5/17/2023,0031019450/5,31019450, 11.67,Ark Trading/Goldstar,01607200,113179830,Uniforms,Parking Off-Street,E10HA000042002,310043022
http://statistics.data.gov.uk/id/local-authority/29UP,Tonbridge & Malling Borough Council,5/17/2023,0031019450/6,31019450, 23.26,Ark Trading/Goldstar,01607200,113179830,Uniforms,Parking On-Street,E10HD000042002,310043022
http://statistics.data.gov.uk/id/local-authority/29UP,Tonbridge & Malling Borough Council,5/17/2023,0031019450/7,31019450, 45.06,Ark Trading/Goldstar,01607200,113179830,Uniforms,Parking On-Street,E10HD000042002,310043022
http://statistics.data.gov.uk/id/local-authority/29UP,Tonbridge & Malling Borough Council,5/17/2023,0031019450/8,31019450, 39.88,Ark Trading/Goldstar,01607200,113179830,Uniforms,Parking On-Street,E10HD000042002,310043022
http://statistics.data.gov.uk/id/local-authority/29UP,Tonbridge & Malling Borough Council,5/17/2023,0031019450/9,31019450, 28.05,Ark Trading/Goldstar,01607200,113179830,Uniforms,Parking On-Street,E10HD000042002,310043022
http://statistics.data.gov.uk/id/local-authority/29UP,Tonbridge & Malling Borough Council,5/17/2023,0032010212/1,32010212, 1781.25,Vivid Resourcing,01773700,,Temporary Staff,Planning Sals&Overheads,D01AJDJ0111300,
http://statistics.data.gov.uk/id/local-authority/29UP,Tonbridge & Malling Borough Council,5/17/2023,0032010213/1,32010213, 366.39,KH Recruitment Ltd,01738900,,Payment re Prev Yrs Cred Acc,Sundry Creditors PHEHS,J80TB000001101,
http://statistics.data.gov.uk/id/local-authority/29UP,Tonbridge & Malling Borough Council,5/17/2023,0032010214/1,32010214, 1800.00,G2 Recruitment Solutions,01786000,,Temporary Staff,Planning Sals&Overheads,D01AJDJ0111300,
http://statistics.data.gov.uk/id/local-authority/29UP,Tonbridge & Malling Borough Council,5/17/2023,0032010215/1,32010215, 1400.22,The Oyster Partnership,01196400,,Temporary Staff,Planning Sals&Overheads,D01AJDJ0111300,
http://statistics.data.gov.uk/id/local-authority/29UP,Tonbridge & Malling Borough Council,5/17/2023,0032010216/1,32010216, 640.50,The Oyster Partnership,01196400,,Temporary Staff,Planning Sals&Overheads,D01AJDJ0111300,
http://statistics.data.gov.uk/id/local-authority/29UP,Tonbridge & Malling Borough Council,5/17/2023,0032010217/1,32010217, 957.38,Carrington West Limited,01844500,,Temporary Staff,Planning Sals&Overheads,D01AJDJ0111300,
http://statistics.data.gov.uk/id/local-authority/29UP,Tonbridge & Malling Borough Council,5/17/2023,0032010218/1,32010218, 1552.50,Carrington West Limited,01844500,,Temporary Staff,Planning Sals&Overheads,D01AJDJ0111300,
http://statistics.data.gov.uk/id/local-authority/29UP,Tonbridge & Malling Borough Council,5/17/2023,0032010219/1,32010219, 15.82,Amazon EU SARL,01738400,,Purchases,Planning Sals&Overheads,D01AJDJ0040101,
http://statistics.data.gov.uk/id/local-authority/29UP,Tonbridge & Malling Borough Council,5/17/2023,0032010220/1,32010220, 2211.00,Hays Specialist Recruitment Limited,01879200,773695871,Temporary Staff,Planning Sals&Overheads,D01AJDJ0111300,
http://statistics.data.gov.uk/id/local-authority/29UP,Tonbridge & Malling Borough Council,5/17/2023,0032010221/1,32010221, 1976.90,Hays Specialist Recruitment Limited,01879200,773695871,Temporary Staff,Planning Sals&Overheads,D01AJDJ0111300,
http://statistics.data.gov.uk/id/local-authority/29UP,Tonbridge & Malling Borough Council,5/17/2023,0032010222/1,32010222, 1005.00,Hays Specialist Recruitment Limited,01879200,773695871,Temporary Staff,Planning Sals&Overheads,D01AJDJ0111300,
http://statistics.data.gov.uk/id/local-authority/29UP,Tonbridge & Malling Borough Council,5/17/2023,0032010223/1,32010223, 116.13,Tetlow King Planning Ltd,01290900,,Temporary Staff,Planning Sals&Overheads,D01AJDJ0111300,320003504
http://statistics.data.gov.uk/id/local-authority/29UP,Tonbridge & Malling Borough Council,5/17/2023,0032010223/2,32010223, 3318.00,Tetlow King Planning Ltd,01290900,,Temporary Staff,Planning Sals&Overheads,D01AJDJ0111300,320003504
http://statistics.data.gov.uk/id/local-authority/29UP,Tonbridge & Malling Borough Council,5/17/2023,0041035504/1,41035504, 1081.14,Morgan Hunt UK Ltd,01086900,,Temporary Staff,Finance Sals&Overheads,D01AFDF1111300,
http://statistics.data.gov.uk/id/local-authority/29UP,Tonbridge & Malling Borough Council,5/17/2023,0041035505/1,41035505, 1081.14,Morgan Hunt UK Ltd,01086900,,Temporary Staff,Finance Sals&Overheads,D01AFDF1111300,
http://statistics.data.gov.uk/id/local-authority/29UP,Tonbridge & Malling Borough Council,5/17/2023,0051008809/3,51008809, 9900.00,Learning Nexus Ltd,01129100,,Ext Fees/Prof & Tech,Training,D10DC000013561,
http://statistics.data.gov.uk/id/local-authority/29UP,Tonbridge & Malling Borough Council,5/17/2023,0051008810/3,51008810, 100.00,St John Ambulance Supplies,01228000,,Ext Fees/Health & Safety,Training,D10DC000013566,
http://statistics.data.gov.uk/id/local-authority/29UP,Tonbridge & Malling Borough Council,5/17/2023,0051008811/3,51008811, 100.00,St John Ambulance Supplies,01228000,,Ext Fees/Health & Safety,Training,D10DCDB0313566,
http://statistics.data.gov.uk/id/local-authority/29UP,Tonbridge & Malling Borough Council,5/17/2023,0051008812/1,51008812, 209.00,Mrs D Pellen,01151100,,Ext Fees/Prof & Tech,Training,D10DCDV0113561,
http://statistics.data.gov.uk/id/local-authority/29UP,Tonbridge & Malling Borough Council,5/18/2023,0041035510/1,41035510, 15.00,HSBC Bank Plc,01740800,,Bank Charges,Banking Arrangements,D43QK000044222,
http://statistics.data.gov.uk/id/local-authority/29UP,Tonbridge & Malling Borough Council,5/18/2023,0041035511/1,41035511, 15.00,HSBC Bank Plc,01740800,,Bank Charges,Banking Arrangements,D43QK000044222,
http://statistics.data.gov.uk/id/local-authority/29UP,Tonbridge & Malling Borough Council,5/18/2023,0041035512/1,41035512, 68.04,Allpay Limited,01816500,,Giro / Swipe Card Charges,Local Revenue & NNDR Collect,D41QA000044083,
http://statistics.data.gov.uk/id/local-authority/29UP,Tonbridge & Malling Borough Council,5/18/2023,0041035513/1,41035513, 169.75,National Westminster Bank Plc,00069400,,Bank Charges,Banking Arrangements,D43QK000044222,
http://statistics.data.gov.uk/id/local-authority/29UP,Tonbridge & Malling Borough Council,5/22/2023,0041035524/1,41035524, 2601.00,H.M. Revenue & Customs,00048400,,Levy Payment,Apprenticeship Scheme,D10DE000013700,
http://statistics.data.gov.uk/id/local-authority/29UP,Tonbridge & Malling Borough Council,5/23/2023,0041035532/1,41035532, 20.19,WorldPay Ltd,01402000,991280207,Credit Card Commission,Banking Arrangements,D43QK000044082,
http://statistics.data.gov.uk/id/local-authority/29UP,Tonbridge & Malling Borough Council,5/23/2023,0041035533/1,41035533, 20.19,WorldPay Ltd,01402000,991280207,Credit Card Commission,Banking Arrangements,D43QK000044082,
http://statistics.data.gov.uk/id/local-authority/29UP,Tonbridge & Malling Borough Council,5/24/2023,0011046124/1,11046124, 329.00,Loxton Installations Ltd,01278800,,BRREP Serv Internal Lighting,Larkfield Leisure Centre,M15HDP20001957,110069874
http://statistics.data.gov.uk/id/local-authority/29UP,Tonbridge & Malling Borough Council,5/24/2023,0011046146/3,11046146, 14146.76,Royal Mail,00086200,,Purchases,Mailsort Stock Account,K37BR000001002,
http://statistics.data.gov.uk/id/local-authority/29UP,Tonbridge & Malling Borough Council,5/24/2023,0011046146/4,11046146, 4.20,Royal Mail,00086200,,Purchases,Mailsort Stock Account,K37BR000001002,
http://statistics.data.gov.uk/id/local-authority/29UP,Tonbridge & Malling Borough Council,5/24/2023,0011046146/5,11046146, 11.47,Royal Mail,00086200,,Purchases,Mailsort Stock Account,K37BR000001002,
http://statistics.data.gov.uk/id/local-authority/29UP,Tonbridge & Malling Borough Council,5/24/2023,0011046147/3,11046147, 68.00,K T Fire Protection Ltd,00057000,,BRREP Servicing - FireAlarmSys,Tonbridge Castle / CAB,M15KFP20001937,
http://statistics.data.gov.uk/id/local-authority/29UP,Tonbridge & Malling Borough Council,5/24/2023,0011046148/3,11046148, 26750.00,Hartnell Taylor Cook,01539500,,Payment re Prev Yrs Cred Acc,Sundry Creditors Admin & Prop,J80TA000001101,
http://statistics.data.gov.uk/id/local-authority/29UP,Tonbridge & Malling Borough Council,5/24/2023,0011046149/3,11046149, 1211.40,The Oyster Partnership,01196400,,Temporary Staff,Admin & Prop Sals&Overheads,D01AADA1111300,
http://statistics.data.gov.uk/id/local-authority/29UP,Tonbridge & Malling Borough Council,5/24/2023,0011046150/3,11046150, 12.50,REDACTED PERSONAL DATA,01697300,,Purchases,Conduct of Elections,D31MG000040101,
http://statistics.data.gov.uk/id/local-authority/29UP,Tonbridge & Malling Borough Council,5/24/2023,0011046150/4,11046150, 33.33,REDACTED PERSONAL DATA,01697300,,Purchases,Conduct of Elections,D31MG000040101,
http://statistics.data.gov.uk/id/local-authority/29UP,Tonbridge & Malling Borough Council,5/24/2023,0011046150/5,11046150, 46.67,REDACTED PERSONAL DATA,01697300,,Purchases,Conduct of Elections,D31MG000040101,
http://statistics.data.gov.uk/id/local-authority/29UP,Tonbridge & Malling Borough Council,5/24/2023,0011046151/3,11046151, 1217.80,Sellick Partnership Group Limited,01336800,,Temporary Staff,Legal Sals&Overheads,D01ARDR0011300,
http://statistics.data.gov.uk/id/local-authority/29UP,Tonbridge & Malling Borough Council,5/24/2023,0011046152/3,11046152, 1217.80,Sellick Partnership Group Limited,01336800,,Temporary Staff,Legal Sals&Overheads,D01ARDR0011300,
http://statistics.data.gov.uk/id/local-authority/29UP,Tonbridge & Malling Borough Council,5/24/2023,0011046153/3,11046153, 90.00,Dalesauna Ltd,00026800,,BRREP Response - General,Larkfield Leisure Centre,M15HDP50001997,
http://statistics.data.gov.uk/id/local-authority/29UP,Tonbridge & Malling Borough Council,5/24/2023,0011046154/3,11046154, 215.52,Initial Washroom Hygiene,00048300,,Laundry - Roller Towels,Cleaning & Security,D21FD000042003,
http://statistics.data.gov.uk/id/local-authority/29UP,Tonbridge & Malling Borough Council,5/24/2023,0011046155/3,11046155, 2172.77,Ricoh UK Ltd,01402300,,Maintenance - General,Printing,D22GA000040135,
http://statistics.data.gov.uk/id/local-authority/29UP,Tonbridge & Malling Borough Council,5/24/2023,0011046156/3,11046156, 417.50,Premier Paper Group,01421800,,Purchases - Paper,Printing,D22GA000040102,
http://statistics.data.gov.uk/id/local-authority/29UP,Tonbridge & Malling Borough Council,5/24/2023,0011046157/3,11046157, 63.60,Curd & Cure,01771000,,Purchases,TIC Stock Account,K18AX000001002,
http://statistics.data.gov.uk/id/local-authority/29UP,Tonbridge & Malling Borough Council,5/24/2023,0011046158/3,11046158, 589.41,KH Recruitment Ltd,01738900,,Temporary Staff,Personnel Sals&Overheads,D01ABDB0311300,
http://statistics.data.gov.uk/id/local-authority/29UP,Tonbridge & Malling Borough Council,5/24/2023,0011046159/1,11046159, 362.50,Eryl Davies Veterinary Surgeon,01657600,,Professional Fees,Licences - Fee Paying,H27SH000044001,
http://statistics.data.gov.uk/id/local-authority/29UP,Tonbridge & Malling Borough Council,5/24/2023,0011046161/3,11046161, 562.50,Brand Art,00568300,,Purchases,TIC Stock Account,K18AX000001002,
http://statistics.data.gov.uk/id/local-authority/29UP,Tonbridge & Malling Borough Council,5/24/2023,0011046162/1,11046162, 2714.40,REDACTED PERSONAL DATA,01899600,,Economic Development & Regen,Eco Dev & Reg Gen Bus Support,D52TD000047027,
http://statistics.data.gov.uk/id/local-authority/29UP,Tonbridge & Malling Borough Council,5/24/2023,0011046163/3,11046163, 64.10,EDF Energy Customers plc,01035000,,Electricity,Homelessness,C01AATNHS21002,
http://statistics.data.gov.uk/id/local-authority/29UP,Tonbridge & Malling Borough Council,5/24/2023,0011046163/4,11046163, 11.73,EDF Energy Customers plc,01035000,,Electricity,Homelessness,C01AATNHS21002,
http://statistics.data.gov.uk/id/local-authority/29UP,Tonbridge & Malling Borough Council,5/24/2023,0011046164/3,11046164, 900.00,C. S. Mitchell LTD,01704800,,Initiatives,UK Shared Prosperity Fund,D52TH000048135,
http://statistics.data.gov.uk/id/local-authority/29UP,Tonbridge & Malling Borough Council,5/24/2023,0011046165/1,11046165, 606.00,Cubicle Centre,01899200,,BRREP Response - General,Tonbridge Swimming Pool,M15HBP50001997,110070218
http://statistics.data.gov.uk/id/local-authority/29UP,Tonbridge & Malling Borough Council,5/24/2023,0011046166/1,11046166, 4533.00,Visit Kent Ltd,01138400,,Tourism & Promotion of Facilit,Eco Dev & Reg Gen Bus Support,D52TD000048113,110070198
http://statistics.data.gov.uk/id/local-authority/29UP,Tonbridge & Malling Borough Council,5/24/2023,0011046167/1,11046167, 650.00,IWS Water Hygiene,01392400,,BRREP Water Softener,Tonbridge Swimming Pool,M15HBP20001917,110070089
http://statistics.data.gov.uk/id/local-authority/29UP,Tonbridge & Malling Borough Council,5/24/2023,0011046168/1,11046168, 479.00,Hadene Engineering Ltd,00041900,,BRREP Gas Soundness Test,Angel Centre,M15HAP30001994,110070210
http://statistics.data.gov.uk/id/local-authority/29UP,Tonbridge & Malling Borough Council,5/24/2023,0011046169/1,11046169, 380.00,Hadene Engineering Ltd,00041900,,BRREP Gas Soundness Test,Larkfield Leisure Centre,M15HDP30001994,110070209
http://statistics.data.gov.uk/id/local-authority/29UP,Tonbridge & Malling Borough Council,5/24/2023,0011046170/1,11046170, 370.00,Hadene Engineering Ltd,00041900,,BRREP Gas Soundness Test,Tonbridge Farm Pavillion,M15HGP30001994,110070208
http://statistics.data.gov.uk/id/local-authority/29UP,Tonbridge & Malling Borough Council,5/24/2023,0011046171/1,11046171, 130.00,Atac Solutions LTD,01558800,,BRREP LeybourneCP SewageDigest,Leybourne Lakes Country Park,M15HLP20001961,110070216
http://statistics.data.gov.uk/id/local-authority/29UP,Tonbridge & Malling Borough Council,5/24/2023,0011046172/1,11046172, 10.00,Extinguisher Doctor Ltd,00059500,,BRREP Servicing-FireExtinguish,Pleasure Grounds & Open Spaces,M15HHP20001938,110070053
http://statistics.data.gov.uk/id/local-authority/29UP,Tonbridge & Malling Borough Council,5/24/2023,0011046173/1,11046173, 1452.74,Raigins Group,01769400,,Other Expenses,Homeless Accommodation,P03AX000009908,110070035
http://statistics.data.gov.uk/id/local-authority/29UP,Tonbridge & Malling Borough Council,5/24/2023,0011046176/1,11046176, 147.00,Seymour Hire Ltd,00737200,,Purchases,Conduct of Elections,D31MG000040101,110070203
http://statistics.data.gov.uk/id/local-authority/29UP,Tonbridge & Malling Borough Council,5/24/2023,0011046177/1,11046177, 2875.00,Bishop's Move,01192800,653152944,Purchases,Conduct of Elections,D31MG000040101,110070026
http://statistics.data.gov.uk/id/local-authority/29UP,Tonbridge & Malling Borough Council,5/24/2023,0011046178/1,11046178, 372.00,Loxton Installations Ltd,01278800,,BRREP Response - General,Leis Man Poult Wood Golf Centr,M15HEP50001997,110069738
http://statistics.data.gov.uk/id/local-authority/29UP,Tonbridge & Malling Borough Council,5/24/2023,0011046179/1,11046179, 125.00,Grace Fashion Accessories,01899900,,Economic Development & Regen,Eco Dev & Reg Gen Bus Support,D52TD000047027,
http://statistics.data.gov.uk/id/local-authority/29UP,Tonbridge & Malling Borough Council,5/24/2023,0011046180/1,11046180, 75.00,Martin & Co,01900100,,Economic Development & Regen,Eco Dev & Reg Gen Bus Support,D52TD000047027,
http://statistics.data.gov.uk/id/local-authority/29UP,Tonbridge & Malling Borough Council,5/24/2023,0011046181/1,11046181, 50.00,REDACTED PERSONAL DATA,01900200,,Economic Development & Regen,Eco Dev & Reg Gen Bus Support,D52TD000047027,
http://statistics.data.gov.uk/id/local-authority/29UP,Tonbridge & Malling Borough Council,5/24/2023,0011046182/7,11046182, 7791.34,Royal Mail,00086200,,Postages - Business Reply,Conduct of Elections,D31MG000045003,
http://statistics.data.gov.uk/id/local-authority/29UP,Tonbridge & Malling Borough Council,5/24/2023,0011046182/8,11046182, 25.00,Royal Mail,00086200,,Purchases,Business Reply Stock Account,K14AT000001002,
http://statistics.data.gov.uk/id/local-authority/29UP,Tonbridge & Malling Borough Council,5/24/2023,0011046184/1,11046184, 787.63,REDACTED PERSONAL DATA,01900500,,Economic Development & Regen,Eco Dev & Reg Gen Bus Support,D52TD000047027,
http://statistics.data.gov.uk/id/local-authority/29UP,Tonbridge & Malling Borough Council,5/24/2023,0012008733/1,12008733, 24.99,CCS Media Ltd,00018000,,Purchases,Information Technology,D27KD000040101,410032411
http://statistics.data.gov.uk/id/local-authority/29UP,Tonbridge & Malling Borough Council,5/24/2023,0012008733/2,12008733, 5.00,CCS Media Ltd,00018000,,Delivery Expenses,Information Technology,D27KD000044069,410032411
http://statistics.data.gov.uk/id/local-authority/29UP,Tonbridge & Malling Borough Council,5/24/2023,0012008734/1,12008734, 487.00,Support Warehouse,01632100,,Maintenance - Micros,Information Technology,D27KD000040140,410032412
http://statistics.data.gov.uk/id/local-authority/29UP,Tonbridge & Malling Borough Council,5/24/2023,0012008734/2,12008734, 487.00,Support Warehouse,01632100,,Maintenance - Micros,Information Technology,D27KD000040140,410032412
http://statistics.data.gov.uk/id/local-authority/29UP,Tonbridge & Malling Borough Council,5/24/2023,0012008734/3,12008734, 487.00,Support Warehouse,01632100,,Maintenance - Micros,Information Technology,D27KD000040140,410032412
http://statistics.data.gov.uk/id/local-authority/29UP,Tonbridge & Malling Borough Council,5/24/2023,0012008735/1,12008735, 81.92,KCS - KCC,00054200,,Copy Charges,Multi Function Devices,D22GB000040125,
http://statistics.data.gov.uk/id/local-authority/29UP,Tonbridge & Malling Borough Council,5/24/2023,0012008736/1,12008736, 6.15,KCS - KCC,00054200,,Copy Charges,Multi Function Devices,D22GB000040125,
http://statistics.data.gov.uk/id/local-authority/29UP,Tonbridge & Malling Borough Council,5/24/2023,0012008737/1,12008737, 0.35,KCS - KCC,00054200,,Copy Charges,Multi Function Devices,D22GB000040125,
http://statistics.data.gov.uk/id/local-authority/29UP,Tonbridge & Malling Borough Council,5/24/2023,0012008738/1,12008738, 74.91,KCS - KCC,00054200,,Copy Charges,Multi Function Devices,D22GB000040125,
http://statistics.data.gov.uk/id/local-authority/29UP,Tonbridge & Malling Borough Council,5/24/2023,0012008739/1,12008739, 6.15,KCS - KCC,00054200,,Copy Charges,Multi Function Devices,D22GB000040125,
http://statistics.data.gov.uk/id/local-authority/29UP,Tonbridge & Malling Borough Council,5/24/2023,0012008740/1,12008740, 1.71,KCS - KCC,00054200,,Copy Charges,Multi Function Devices,D22GB000040125,
http://statistics.data.gov.uk/id/local-authority/29UP,Tonbridge & Malling Borough Council,5/24/2023,0012008741/1,12008741, 95.18,KCS - KCC,00054200,,Copy Charges,Multi Function Devices,D22GB000040125,
http://statistics.data.gov.uk/id/local-authority/29UP,Tonbridge & Malling Borough Council,5/24/2023,0012008742/1,12008742, 15.40,KCS - KCC,00054200,,Copy Charges,Multi Function Devices,D22GB000040125,
http://statistics.data.gov.uk/id/local-authority/29UP,Tonbridge & Malling Borough Council,5/24/2023,0012008743/1,12008743, 635.00,MISO - Dotted Eyes Ltd,01022500,,Software Hire & Support,Information Technology,D27KD000044059,410032378
http://statistics.data.gov.uk/id/local-authority/29UP,Tonbridge & Malling Borough Council,5/24/2023,0012008744/1,12008744, 30000.00,Agile Applications Ltd,01850800,,Software Hire & Support,Information Technology,D27KD000044059,410032415
http://statistics.data.gov.uk/id/local-authority/29UP,Tonbridge & Malling Borough Council,5/24/2023,0012008745/3,12008745, 20635.83,Phoenix Software Ltd,00077400,755349015,Software Hire & Support,Information Technology,D27KD000044059,
http://statistics.data.gov.uk/id/local-authority/29UP,Tonbridge & Malling Borough Council,5/24/2023,0021038571/1,21038571, 236.00,Office Furniture Online,01319800,,Initial Furniture & Equipment,Capital Renewals Leisure,P05KGBC0109906,210057230
http://statistics.data.gov.uk/id/local-authority/29UP,Tonbridge & Malling Borough Council,5/24/2023,0021038572/1,21038572, 64.74,Wicksteed Leisure Limited,00167900,,Maintenance of Play Equipment,Open Spaces & Amenity Areas,B22LE000020503,210057210
http://statistics.data.gov.uk/id/local-authority/29UP,Tonbridge & Malling Borough Council,5/24/2023,0021038573/3,21038573, 357.00,Loxton Installations Ltd,01278800,,Payment re Prev Yrs Cred Acc,Sundry Creditors SSLTS,J80TL000001101,
http://statistics.data.gov.uk/id/local-authority/29UP,Tonbridge & Malling Borough Council,5/24/2023,0021038574/1,21038574, 2295.00,Gymnova ,01666800,,Initial Furniture & Equipment,Capital Renewals Leisure,P05KGBC0209906,210057165
http://statistics.data.gov.uk/id/local-authority/29UP,Tonbridge & Malling Borough Council,5/24/2023,0021038574/2,21038574, 908.00,Gymnova ,01666800,,Initial Furniture & Equipment,Capital Renewals Leisure,P05KGBC0209906,210057165
http://statistics.data.gov.uk/id/local-authority/29UP,Tonbridge & Malling Borough Council,5/24/2023,0021038575/3,21038575, 268.98,KCC - L.A.S.E.R Commercial Services ,00184300,,Electricity,Open Spaces & Amenity Areas,B22LE000021002,
http://statistics.data.gov.uk/id/local-authority/29UP,Tonbridge & Malling Borough Council,5/24/2023,0021038576/1,21038576, 300.00,Broxap Ltd,00312300,,Income,LLCP Facility Improv,P05FF000009907,210057169
http://statistics.data.gov.uk/id/local-authority/29UP,Tonbridge & Malling Borough Council,5/24/2023,0021038576/2,21038576, 150.00,Broxap Ltd,00312300,,Income,LLCP Facility Improv,P05FF000009907,210057169
http://statistics.data.gov.uk/id/local-authority/29UP,Tonbridge & Malling Borough Council,5/24/2023,0021038576/3,21038576, 98.00,Broxap Ltd,00312300,,Income,LLCP Facility Improv,P05FF000009907,210057169
http://statistics.data.gov.uk/id/local-authority/29UP,Tonbridge & Malling Borough Council,5/24/2023,0021038577/3,21038577, 550.00,BML Security & Facilities Management,01900700,,Events Support,Events Development,B41TJ000044041,
http://statistics.data.gov.uk/id/local-authority/29UP,Tonbridge & Malling Borough Council,5/24/2023,0021038578/1,21038578, 685.66,Atlas Facilities Managment Limited ,01075900,,Gates / Security,Patrolling,B22LF000044017,210057188
http://statistics.data.gov.uk/id/local-authority/29UP,Tonbridge & Malling Borough Council,5/24/2023,0021038579/1,21038579, 100.00,Loose Women Morris,01899800,,Events Support,Events Development,B41TJ000044041,
http://statistics.data.gov.uk/id/local-authority/29UP,Tonbridge & Malling Borough Council,5/24/2023,0022027766/3,22027766, 450.00,On Site Wheelie Washers,01069700,,General Maintenance,Dry Recycling,H34SR000020301,
http://statistics.data.gov.uk/id/local-authority/29UP,Tonbridge & Malling Borough Council,5/24/2023,0022027767/3,22027767, 600.00,On Site Wheelie Washers,01069700,,Other Expenses,Refuse Collection,H20SA000048010,
http://statistics.data.gov.uk/id/local-authority/29UP,Tonbridge & Malling Borough Council,5/24/2023,0022027768/3,22027768, 1397.00,Specialist Hygiene Services,01466100,,Cleaning & Domestic Supplies,Haysden Country Park,B22LC000026001,
http://statistics.data.gov.uk/id/local-authority/29UP,Tonbridge & Malling Borough Council,5/24/2023,0022027768/4,22027768, 4073.30,Specialist Hygiene Services,01466100,,Contract Payments,Public Conveniences,H22SC000054001,
http://statistics.data.gov.uk/id/local-authority/29UP,Tonbridge & Malling Borough Council,5/24/2023,0022027769/1,22027769, 3500.00,G&T Southern Property Limited,01899500,,Homelessness Reduction Initiat,Homelessness,C01AANSAP48019,
http://statistics.data.gov.uk/id/local-authority/29UP,Tonbridge & Malling Borough Council,5/24/2023,0022027770/3,22027770, 10.00,REDACTED PERSONAL DATA,01820500,,Other Expenses,Civil Contingencies,D33NA000048010,
http://statistics.data.gov.uk/id/local-authority/29UP,Tonbridge & Malling Borough Council,5/24/2023,0022027771/3,22027771, 952.26,KCC - L.A.S.E.R Commercial Services ,00184300,,Electricity,Public Conveniences,H22SCH00421002,
http://statistics.data.gov.uk/id/local-authority/29UP,Tonbridge & Malling Borough Council,5/24/2023,0022027772/1,22027772, 250.00,REDACTED PERSONAL DATA,01895600,,Healthy Living Initiatives,Public Health - Healthy Living,H40SYVH0048145,220003348
http://statistics.data.gov.uk/id/local-authority/29UP,Tonbridge & Malling Borough Council,5/24/2023,0022027773/1,22027773, 1227.64,Town & Country Housing Group,01385400,,Other Expenses,Disabled Facilities Grant Mand,P03AC000009908,
http://statistics.data.gov.uk/id/local-authority/29UP,Tonbridge & Malling Borough Council,5/24/2023,0022027774/1,22027774, 8483.57,Roca Verdi Limited,01870500,,Other Expenses,Disabled Facilities Grant Mand,P03AC000009908,
http://statistics.data.gov.uk/id/local-authority/29UP,Tonbridge & Malling Borough Council,5/24/2023,0022027775/3,22027775, 490.00,Countrystyle Group,00835900,781981681,Collection of Card,Dry Recycling,H34SR000054008,
http://statistics.data.gov.uk/id/local-authority/29UP,Tonbridge & Malling Borough Council,5/24/2023,0022027776/3,22027776, 245.00,Countrystyle Group,00835900,781981681,Collection of Card,Dry Recycling,H34SR000054008,
http://statistics.data.gov.uk/id/local-authority/29UP,Tonbridge & Malling Borough Council,5/24/2023,0022027777/1,22027777, 5160.00,Broxap Ltd,00312300,,Purchases,Street Scene,H23SD000040101,220003331
http://statistics.data.gov.uk/id/local-authority/29UP,Tonbridge & Malling Borough Council,5/24/2023,0022027778/3,22027778, 264.50,Britains Limited,01743900,,Repairs & Mtce to Buildings,Homelessness,C01AATNHS20101,
http://statistics.data.gov.uk/id/local-authority/29UP,Tonbridge & Malling Borough Council,5/24/2023,0022027779/1,22027779, 490.00,Donna Morling Grove,01887600,,Countywide DFG Project,Private Sector Housing Renewal,C03BD000044031,220003309
http://statistics.data.gov.uk/id/local-authority/29UP,Tonbridge & Malling Borough Council,5/24/2023,0022027780/3,22027780, 68.54,British Telecommunications Plc,00012800,,Purchases,Homelessness,C01AATNPR40101,
http://statistics.data.gov.uk/id/local-authority/29UP,Tonbridge & Malling Borough Council,5/24/2023,0022027781/1,22027781, 653.00,Acoustic Calibration Services Ltd,00775900,,Air Quality Monitoring,Environmental Protection,H32SN000054016,220003346
http://statistics.data.gov.uk/id/local-authority/29UP,Tonbridge & Malling Borough Council,5/24/2023,0022027782/1,22027782, 766.75,Town & Country Housing Group,01385400,,Other Expenses,Disabled Facilities Grant Mand,P03AC000009908,
http://statistics.data.gov.uk/id/local-authority/29UP,Tonbridge & Malling Borough Council,5/24/2023,0022027783/1,22027783, 5324.67,Safespaces (Cornholme) LTD,01524300,,Other Expenses,Disabled Facilities Grant Mand,P03AC000009908,
http://statistics.data.gov.uk/id/local-authority/29UP,Tonbridge & Malling Borough Council,5/24/2023,0022027784/1,22027784, 594.00,Kent County Council,00322500,,Other Expenses,Disabled Facilities Grant Mand,P03AC000009908,
http://statistics.data.gov.uk/id/local-authority/29UP,Tonbridge & Malling Borough Council,5/24/2023,0022027785/1,22027785, 357.00,Kent Accommodation Ltd,01722000,,Professional Fees,Homelessness,C01AA000044001,
http://statistics.data.gov.uk/id/local-authority/29UP,Tonbridge & Malling Borough Council,5/24/2023,0022027786/3,22027786, 442.19,British Gas Services LTD,01260000,,Electricity,Homelessness,C01AAMAUN21002,
http://statistics.data.gov.uk/id/local-authority/29UP,Tonbridge & Malling Borough Council,5/24/2023,0022027787/3,22027787, 167.41,British Gas,01148500,,Electricity,Homelessness,C01AAMAUN21002,
http://statistics.data.gov.uk/id/local-authority/29UP,Tonbridge & Malling Borough Council,5/24/2023,0022027788/7,22027788, 405.48,British Gas Services LTD,01260000,,Electricity,Homelessness,C01AAMAUN21002,
http://statistics.data.gov.uk/id/local-authority/29UP,Tonbridge & Malling Borough Council,5/24/2023,0031019451/3,31019451, 267.03,B&Q/Screwfix Direct(TradeUKAccount),00141300,,Purchases,Boro Highways & Emergency Oper,E01AA000040101,
http://statistics.data.gov.uk/id/local-authority/29UP,Tonbridge & Malling Borough Council,5/24/2023,0031019452/1,31019452, 50.00,REDACTED PERSONAL DATA,01899700,,Premises Repairs & Maintenance,Parking Off-Street,E10HAE00620601,
http://statistics.data.gov.uk/id/local-authority/29UP,Tonbridge & Malling Borough Council,5/24/2023,0031019453/3,31019453, 144.00,Citiguard Security (UK) Ltd,01872100,200436269,Professional Fees,Parking Off-Street,E10HA000044001,
http://statistics.data.gov.uk/id/local-authority/29UP,Tonbridge & Malling Borough Council,5/24/2023,0031019454/3,31019454, 903.43,CDER Group,01773300,,Adjudication & Enforcement Ser,Parking Off-Street,E10HA000044230,
http://statistics.data.gov.uk/id/local-authority/29UP,Tonbridge & Malling Borough Council,5/24/2023,0031019455/3,31019455, 203.69,British Telecommunications Plc,00012800,,Maintenance - General,Security Services Management,E09GA000040135,
http://statistics.data.gov.uk/id/local-authority/29UP,Tonbridge & Malling Borough Council,5/24/2023,0031019456/1,31019456, 491.80,PSR Lighting & Signs Ltd,01265400,,Premises Repairs & Maintenance,Parking Off-Street,E10HA000020601,310043030
http://statistics.data.gov.uk/id/local-authority/29UP,Tonbridge & Malling Borough Council,5/24/2023,0031019457/3,31019457, 53.66,Npower Ltd,01675800,,Electricity,Parking Off-Street,E10HA000021002,
http://statistics.data.gov.uk/id/local-authority/29UP,Tonbridge & Malling Borough Council,5/24/2023,0031019458/3,31019458, 96.30,Npower Ltd,01675800,,Electricity,Parking Off-Street,E10HA000021002,
http://statistics.data.gov.uk/id/local-authority/29UP,Tonbridge & Malling Borough Council,5/24/2023,0031019459/3,31019459, 240.79,Npower Ltd,01675800,,Electricity,Parking Off-Street,E10HA000021002,
http://statistics.data.gov.uk/id/local-authority/29UP,Tonbridge & Malling Borough Council,5/24/2023,0031019460/1,31019460, 514.80,DSSL Group Ltd,01839500,,Initial Furniture & Equipment,Cap Ren CCTV,P01BA000009906,310043034
http://statistics.data.gov.uk/id/local-authority/29UP,Tonbridge & Malling Borough Council,5/24/2023,0031019460/2,31019460, 664.56,DSSL Group Ltd,01839500,,Initial Furniture & Equipment,Cap Ren CCTV,P01BA000009906,310043034
http://statistics.data.gov.uk/id/local-authority/29UP,Tonbridge & Malling Borough Council,5/24/2023,0031019461/1,31019461, 5553.75,Archway Highway Services Ltd,01398000,,Car Parking Action Plan,Parking On-Street,E10HD000020801,310043032
http://statistics.data.gov.uk/id/local-authority/29UP,Tonbridge & Malling Borough Council,5/24/2023,0031019462/3,31019462, 106.51,Amazon EU SARL,01738400,,Purchases,Civil Contingencies,D33NA000040101,
http://statistics.data.gov.uk/id/local-authority/29UP,Tonbridge & Malling Borough Council,5/24/2023,0031019463/3,31019463, 146.48,Amazon EU SARL,01738400,,Purchases,Civil Contingencies,D33NA000040101,
http://statistics.data.gov.uk/id/local-authority/29UP,Tonbridge & Malling Borough Council,5/24/2023,0031019464/1,31019464, 623.00,SKF Contractors Ltd,00092000,,Premises Repairs & Maintenance,Parking Off-Street,E10HA000020601,310043043
http://statistics.data.gov.uk/id/local-authority/29UP,Tonbridge & Malling Borough Council,5/24/2023,0031019465/1,31019465, 19.90,KCS Education/CSG Global Education Ltd,01897200,408845925,Stationery,Technical Sals&Overheads,D01AE000043003,310043053
http://statistics.data.gov.uk/id/local-authority/29UP,Tonbridge & Malling Borough Council,5/24/2023,0031019465/2,31019465, 2.92,KCS Education/CSG Global Education Ltd,01897200,408845925,Stationery,Technical Sals&Overheads,D01AE000043003,310043053
http://statistics.data.gov.uk/id/local-authority/29UP,Tonbridge & Malling Borough Council,5/24/2023,0031019466/1,31019466, 0.99,The Safety Supply Company,01719500,,Purchases,Civil Contingencies,D33NA000040101,310043038
http://statistics.data.gov.uk/id/local-authority/29UP,Tonbridge & Malling Borough Council,5/24/2023,0031019466/2,31019466, 1.65,The Safety Supply Company,01719500,,Purchases,Civil Contingencies,D33NA000040101,310043038
http://statistics.data.gov.uk/id/local-authority/29UP,Tonbridge & Malling Borough Council,5/24/2023,0031019467/1,31019467, 665.00,C. S. Mitchell LTD,01704800,,Payment re Prev Yrs Cred Acc,Sundry Creditors SSLTS,J80TL000001101,
http://statistics.data.gov.uk/id/local-authority/29UP,Tonbridge & Malling Borough Council,5/24/2023,0032010224/3,32010224, 1980.75,Vivid Resourcing,01773700,,Temporary Staff,Planning Sals&Overheads,D01AJDJ0111300,
http://statistics.data.gov.uk/id/local-authority/29UP,Tonbridge & Malling Borough Council,5/24/2023,0032010225/3,32010225, 1403.68,The Oyster Partnership,01196400,,Temporary Staff,Planning Sals&Overheads,D01AJDJ0111300,
http://statistics.data.gov.uk/id/local-authority/29UP,Tonbridge & Malling Borough Council,5/24/2023,0032010226/3,32010226, 1323.00,The Oyster Partnership,01196400,,Temporary Staff,Planning Sals&Overheads,D01AJDJ0111300,
http://statistics.data.gov.uk/id/local-authority/29UP,Tonbridge & Malling Borough Council,5/24/2023,0032010227/1,32010227, 3.49,Greenham Trading Ltd,00127900,745138823,Protective Clothing,Planning Sals&Overheads,D01AJDJ0142001,320003512
http://statistics.data.gov.uk/id/local-authority/29UP,Tonbridge & Malling Borough Council,5/24/2023,0032010227/2,32010227, 24.49,Greenham Trading Ltd,00127900,745138823,Protective Clothing,Planning Sals&Overheads,D01AJDJ0142001,320003512
http://statistics.data.gov.uk/id/local-authority/29UP,Tonbridge & Malling Borough Council,5/24/2023,0032010227/3,32010227, 80.75,Greenham Trading Ltd,00127900,745138823,Protective Clothing,Planning Sals&Overheads,D01AJDJ0142001,320003512
http://statistics.data.gov.uk/id/local-authority/29UP,Tonbridge & Malling Borough Council,5/24/2023,0032010228/3,32010228, 1800.00,G2 Recruitment Solutions,01786000,,Temporary Staff,Planning Sals&Overheads,D01AJDJ0111300,
http://statistics.data.gov.uk/id/local-authority/29UP,Tonbridge & Malling Borough Council,5/24/2023,0032010229/3,32010229, 1345.50,Carrington West Limited,01844500,,Temporary Staff,Planning Sals&Overheads,D01AJDJ0111300,
http://statistics.data.gov.uk/id/local-authority/29UP,Tonbridge & Malling Borough Council,5/24/2023,0032010230/3,32010230, 1376.00,Carrington West Limited,01844500,,Temporary Staff,Planning Sals&Overheads,D01AJDJ0111300,
http://statistics.data.gov.uk/id/local-authority/29UP,Tonbridge & Malling Borough Council,5/24/2023,0032010231/3,32010231, 1376.00,Carrington West Limited,01844500,,Temporary Staff,Planning Sals&Overheads,D01AJDJ0111300,
http://statistics.data.gov.uk/id/local-authority/29UP,Tonbridge & Malling Borough Council,5/24/2023,0032010232/1,32010232, 225.00,London Borough of Camden,01429600,,Professional Membership,Planning Sals&Overheads,D01AJDJ0147001,320003515
http://statistics.data.gov.uk/id/local-authority/29UP,Tonbridge & Malling Borough Council,5/24/2023,0032010233/1,32010233, 2112.05,Hays Specialist Recruitment Limited,01879200,773695871,Temporary Staff,Planning Sals&Overheads,D01AJDJ0111300,
http://statistics.data.gov.uk/id/local-authority/29UP,Tonbridge & Malling Borough Council,5/24/2023,0032010234/1,32010234, 2077.00,Hays Specialist Recruitment Limited,01879200,773695871,Temporary Staff,Planning Sals&Overheads,D01AJDJ0111300,
http://statistics.data.gov.uk/id/local-authority/29UP,Tonbridge & Malling Borough Council,5/24/2023,0041035514/1,41035514, 1500.00,Martin Square Traders Association,00904000,,Borough Christmas Lighting,Eco Dev & Reg Boro Chris Light,D52TE000047014,
http://statistics.data.gov.uk/id/local-authority/29UP,Tonbridge & Malling Borough Council,5/24/2023,0041035515/1,41035515, 2.49,Amazon EU SARL,01738400,,Purchases,Finance Sals&Overheads,D01AF000040101,410032383
http://statistics.data.gov.uk/id/local-authority/29UP,Tonbridge & Malling Borough Council,5/24/2023,0041035515/2,41035515, 16.50,Amazon EU SARL,01738400,,Stationery,Finance Sals&Overheads,D01AF000043003,410032383
http://statistics.data.gov.uk/id/local-authority/29UP,Tonbridge & Malling Borough Council,5/24/2023,0041035516/3,41035516, 1081.14,Morgan Hunt UK Ltd,01086900,,Temporary Staff,Finance Sals&Overheads,D01AFDF1111300,
http://statistics.data.gov.uk/id/local-authority/29UP,Tonbridge & Malling Borough Council,5/24/2023,0041035518/3,41035518, 2220.56,Maidstone Borough Council,01173700,,Bailiffs Commission,Local Revenue & NNDR Collect,D41QA000044075,
http://statistics.data.gov.uk/id/local-authority/29UP,Tonbridge & Malling Borough Council,5/24/2023,0041035520/3,41035520, 2012.73,Rundle & Co Ltd,00087200,,Bailiffs Commission,Local Revenue & NNDR Collect,D41QA000044075,
http://statistics.data.gov.uk/id/local-authority/29UP,Tonbridge & Malling Borough Council,5/24/2023,0041035521/3,41035521, 72.34,Rundle & Co Ltd,00087200,,Bailiffs Commission,Local Revenue & NNDR Collect,D41QA000044075,
http://statistics.data.gov.uk/id/local-authority/29UP,Tonbridge & Malling Borough Council,5/24/2023,0041035522/3,41035522, 2993.00,Rundle & Co Ltd,00087200,,Bailiffs Commission,Local Revenue & NNDR Collect,D41QA000044075,
http://statistics.data.gov.uk/id/local-authority/29UP,Tonbridge & Malling Borough Council,5/24/2023,0041035522/5,41035522, 0.05,Rundle & Co Ltd,00087200,,Bailiffs Commission,Local Revenue & NNDR Collect,D41QA000044075,
http://statistics.data.gov.uk/id/local-authority/29UP,Tonbridge & Malling Borough Council,5/24/2023,0041035530/1,41035530, 380.00,Greenhalgh Kerr,01590200,,Bailiffs Commission,Local Revenue & NNDR Collect,D41QA000044075,
http://statistics.data.gov.uk/id/local-authority/29UP,Tonbridge & Malling Borough Council,5/24/2023,0041035534/1,41035534, 0.88,WorldPay Ltd,01402000,991280207,Credit Card Commission,Banking Arrangements,D43QK000044082,
http://statistics.data.gov.uk/id/local-authority/29UP,Tonbridge & Malling Borough Council,5/24/2023,0041035534/2,41035534, 80.00,WorldPay Ltd,01402000,991280207,Credit Card Commission,Banking Arrangements,D43QK000044082,
http://statistics.data.gov.uk/id/local-authority/29UP,Tonbridge & Malling Borough Council,5/24/2023,0041035534/3,41035534, 152.48,WorldPay Ltd,01402000,991280207,Credit Card Commission,Banking Arrangements,D43QK000044082,
http://statistics.data.gov.uk/id/local-authority/29UP,Tonbridge & Malling Borough Council,5/24/2023,0041035535/1,41035535, 80.00,WorldPay Ltd,01402000,991280207,Credit Card Commission,Banking Arrangements,D43QK000044082,
http://statistics.data.gov.uk/id/local-authority/29UP,Tonbridge & Malling Borough Council,5/24/2023,0041035535/2,41035535, 138.80,WorldPay Ltd,01402000,991280207,Credit Card Commission,Banking Arrangements,D43QK000044082,
http://statistics.data.gov.uk/id/local-authority/29UP,Tonbridge & Malling Borough Council,5/24/2023,0041035535/3,41035535, 0.24,WorldPay Ltd,01402000,991280207,Credit Card Commission,Banking Arrangements,D43QK000044082,
http://statistics.data.gov.uk/id/local-authority/29UP,Tonbridge & Malling Borough Council,5/24/2023,0041035536/1,41035536, 80.00,WorldPay Ltd,01402000,991280207,Credit Card Commission,Banking Arrangements,D43QK000044082,
http://statistics.data.gov.uk/id/local-authority/29UP,Tonbridge & Malling Borough Council,5/24/2023,0041035536/2,41035536, 496.56,WorldPay Ltd,01402000,991280207,Credit Card Commission,Banking Arrangements,D43QK000044082,
http://statistics.data.gov.uk/id/local-authority/29UP,Tonbridge & Malling Borough Council,5/24/2023,0041035536/3,41035536, 1.52,WorldPay Ltd,01402000,991280207,Credit Card Commission,Banking Arrangements,D43QK000044082,
http://statistics.data.gov.uk/id/local-authority/29UP,Tonbridge & Malling Borough Council,5/24/2023,0041035537/1,41035537, 80.00,WorldPay Ltd,01402000,991280207,Credit Card Commission,Banking Arrangements,D43QK000044082,
http://statistics.data.gov.uk/id/local-authority/29UP,Tonbridge & Malling Borough Council,5/24/2023,0041035537/2,41035537, 74.24,WorldPay Ltd,01402000,991280207,Credit Card Commission,Banking Arrangements,D43QK000044082,
http://statistics.data.gov.uk/id/local-authority/29UP,Tonbridge & Malling Borough Council,5/24/2023,0041035537/3,41035537, 0.32,WorldPay Ltd,01402000,991280207,Credit Card Commission,Banking Arrangements,D43QK000044082,
http://statistics.data.gov.uk/id/local-authority/29UP,Tonbridge & Malling Borough Council,5/24/2023,0041035538/1,41035538, 80.00,WorldPay Ltd,01402000,991280207,Credit Card Commission,Banking Arrangements,D43QK000044082,
http://statistics.data.gov.uk/id/local-authority/29UP,Tonbridge & Malling Borough Council,5/24/2023,0041035538/2,41035538, 173.92,WorldPay Ltd,01402000,991280207,Credit Card Commission,Banking Arrangements,D43QK000044082,
http://statistics.data.gov.uk/id/local-authority/29UP,Tonbridge & Malling Borough Council,5/24/2023,0041035538/3,41035538, 0.96,WorldPay Ltd,01402000,991280207,Credit Card Commission,Banking Arrangements,D43QK000044082,
http://statistics.data.gov.uk/id/local-authority/29UP,Tonbridge & Malling Borough Council,5/24/2023,0041035539/1,41035539, 80.00,WorldPay Ltd,01402000,991280207,Credit Card Commission,Banking Arrangements,D43QK000044082,
http://statistics.data.gov.uk/id/local-authority/29UP,Tonbridge & Malling Borough Council,5/24/2023,0041035539/2,41035539, 158.16,WorldPay Ltd,01402000,991280207,Credit Card Commission,Banking Arrangements,D43QK000044082,
http://statistics.data.gov.uk/id/local-authority/29UP,Tonbridge & Malling Borough Council,5/24/2023,0041035539/3,41035539, 0.24,WorldPay Ltd,01402000,991280207,Credit Card Commission,Banking Arrangements,D43QK000044082,
http://statistics.data.gov.uk/id/local-authority/29UP,Tonbridge & Malling Borough Council,5/24/2023,0051008814/1,51008814, 790.00,Keep Britain Tidy,00519900,,Ext Fees/Prof & Tech,Training,D10DCDG2013561,510010628
http://statistics.data.gov.uk/id/local-authority/29UP,Tonbridge & Malling Borough Council,5/24/2023,0051008816/1,51008816, 100.00,St John Ambulance Supplies,01228000,,Ext Fees/Health & Safety,Training,D10DC000013566,510010629
http://statistics.data.gov.uk/id/local-authority/29UP,Tonbridge & Malling Borough Council,5/24/2023,0051008817/3,51008817, 100.00,St John Ambulance Supplies,01228000,,Ext Fees/Health & Safety,Training,D10DC000013566,
http://statistics.data.gov.uk/id/local-authority/29UP,Tonbridge & Malling Borough Council,5/25/2023,0041035495/10,41035495, 3.29,National Westminster Bank Plc,00894500,,Castle Catering Provisions,Ton Castle Council Chamber,D21FC000041015,
http://statistics.data.gov.uk/id/local-authority/29UP,Tonbridge & Malling Borough Council,5/25/2023,0041035495/11,41035495, 173.96,National Westminster Bank Plc,00894500,,Castle Catering Provisions,Ton Castle Council Chamber,D21FC000041015,
http://statistics.data.gov.uk/id/local-authority/29UP,Tonbridge & Malling Borough Council,5/25/2023,0041035495/12,41035495, 18.36,National Westminster Bank Plc,00894500,,Software Hire & Support,Information Technology,D27KD000044059,
http://statistics.data.gov.uk/id/local-authority/29UP,Tonbridge & Malling Borough Council,5/25/2023,0041035495/13,41035495, 200.07,National Westminster Bank Plc,00894500,,Subscriptions,Information Technology,D27KD000047002,
http://statistics.data.gov.uk/id/local-authority/29UP,Tonbridge & Malling Borough Council,5/25/2023,0041035495/14,41035495, 80.00,National Westminster Bank Plc,00894500,,Hospitality,Mayoral & Other Member Support,D29LX000048003,
http://statistics.data.gov.uk/id/local-authority/29UP,Tonbridge & Malling Borough Council,5/25/2023,0041035495/15,41035495, 49.00,National Westminster Bank Plc,00894500,,Information & Publicity,Information & Publicity,D32MJ000044076,
http://statistics.data.gov.uk/id/local-authority/29UP,Tonbridge & Malling Borough Council,5/25/2023,0041035495/16,41035495, 150.00,National Westminster Bank Plc,00894500,,Transport Repair & Maintenance,Parking On-Street,E10HD000030103,
http://statistics.data.gov.uk/id/local-authority/29UP,Tonbridge & Malling Borough Council,5/25/2023,0041035495/17,41035495, 100.00,National Westminster Bank Plc,00894500,,Transport Repair & Maintenance,Parking On-Street,E10HD000030103,
http://statistics.data.gov.uk/id/local-authority/29UP,Tonbridge & Malling Borough Council,5/25/2023,0041035495/18,41035495, 1342.31,National Westminster Bank Plc,00894500,,Transport Repair & Maintenance,Parking On-Street,E10HD000030103,
http://statistics.data.gov.uk/id/local-authority/29UP,Tonbridge & Malling Borough Council,5/25/2023,0041035495/20,41035495, 105.40,National Westminster Bank Plc,00894500,,Sales,TIC Stock Account,K18AX000002002,
http://statistics.data.gov.uk/id/local-authority/29UP,Tonbridge & Malling Borough Council,5/25/2023,0041035495/21,41035495, 94.64,National Westminster Bank Plc,00894500,,Sales,TIC Stock Account,K18AX000002002,
http://statistics.data.gov.uk/id/local-authority/29UP,Tonbridge & Malling Borough Council,5/25/2023,0041035495/3,41035495, 8.32,National Westminster Bank Plc,00894500,,Purchases,Tonbridge Castle Gatehouse,B40TG000040101,
http://statistics.data.gov.uk/id/local-authority/29UP,Tonbridge & Malling Borough Council,5/25/2023,0041035495/4,41035495, 59.50,National Westminster Bank Plc,00894500,,Purchases,Env Hlth & Hsg Sals&Overheads,D01AVDV0040101,
http://statistics.data.gov.uk/id/local-authority/29UP,Tonbridge & Malling Borough Council,5/25/2023,0041035495/5,41035495, 14.50,National Westminster Bank Plc,00894500,,Purchases,Env Hlth & Hsg Sals&Overheads,D01AVDV0040101,
http://statistics.data.gov.uk/id/local-authority/29UP,Tonbridge & Malling Borough Council,5/25/2023,0041035495/6,41035495, 11.96,National Westminster Bank Plc,00894500,,Purchases,Env Hlth & Hsg Sals&Overheads,D01AVDV0040101,
http://statistics.data.gov.uk/id/local-authority/29UP,Tonbridge & Malling Borough Council,5/25/2023,0041035495/7,41035495, 47.94,National Westminster Bank Plc,00894500,,Purchases,Env Hlth & Hsg Sals&Overheads,D01AVDV0040101,
http://statistics.data.gov.uk/id/local-authority/29UP,Tonbridge & Malling Borough Council,5/25/2023,0041035495/9,41035495, 111.81,National Westminster Bank Plc,00894500,,Castle Catering Provisions,Ton Castle Council Chamber,D21FC000041015,
http://statistics.data.gov.uk/id/local-authority/29UP,Tonbridge & Malling Borough Council,5/25/2023,0041035543/1,41035543, 1200.00,REDACTED PERSONAL DATA,01900900,,Other Expenses,Ukrainian Refugee Assistance,D54UA000048010,
http://statistics.data.gov.uk/id/local-authority/29UP,Tonbridge & Malling Borough Council,5/25/2023,0041035545/1,41035545, 68.00,National Westminster Bank Plc,00069400,,Bank Charges,Banking Arrangements,D43QK000044222,
http://statistics.data.gov.uk/id/local-authority/29UP,Tonbridge & Malling Borough Council,5/30/2023,0041035541/10,41035541, 99.00,National Westminster Bank Plc,00894500,,Ext Fees/Prof & Tech,Training,D10DCDV0913561,
http://statistics.data.gov.uk/id/local-authority/29UP,Tonbridge & Malling Borough Council,5/30/2023,0041035541/11,41035541, 157.44,National Westminster Bank Plc,00894500,,Castle Catering Provisions,Ton Castle Council Chamber,D21FC000041015,
http://statistics.data.gov.uk/id/local-authority/29UP,Tonbridge & Malling Borough Council,5/30/2023,0041035541/12,41035541, 66.64,National Westminster Bank Plc,00894500,,Castle Catering Provisions,Ton Castle Council Chamber,D21FC000041015,
http://statistics.data.gov.uk/id/local-authority/29UP,Tonbridge & Malling Borough Council,5/30/2023,0041035541/13,41035541, 245.94,National Westminster Bank Plc,00894500,,Castle Catering Provisions,Ton Castle Council Chamber,D21FC000041015,
http://statistics.data.gov.uk/id/local-authority/29UP,Tonbridge & Malling Borough Council,5/30/2023,0041035541/14,41035541, 5.65,National Westminster Bank Plc,00894500,,Castle Catering Provisions,Ton Castle Council Chamber,D21FC000041015,
http://statistics.data.gov.uk/id/local-authority/29UP,Tonbridge & Malling Borough Council,5/30/2023,0041035541/16,41035541, 80.99,National Westminster Bank Plc,00894500,,Software Hire & Support,Information Technology,D27KD000044059,
http://statistics.data.gov.uk/id/local-authority/29UP,Tonbridge & Malling Borough Council,5/30/2023,0041035541/17,41035541, 101.49,National Westminster Bank Plc,00894500,,Software Hire & Support,Information Technology,D27KD000044059,
http://statistics.data.gov.uk/id/local-authority/29UP,Tonbridge & Malling Borough Council,5/30/2023,0041035541/18,41035541, 19.34,National Westminster Bank Plc,00894500,,Software Hire & Support,Information Technology,D27KD000044059,
http://statistics.data.gov.uk/id/local-authority/29UP,Tonbridge & Malling Borough Council,5/30/2023,0041035541/19,41035541, 81.81,National Westminster Bank Plc,00894500,,Software Hire & Support,Information Technology,D27KD000044059,
http://statistics.data.gov.uk/id/local-authority/29UP,Tonbridge & Malling Borough Council,5/30/2023,0041035541/20,41035541, 49.00,National Westminster Bank Plc,00894500,,Information & Publicity,Information & Publicity,D32MJ000044076,
http://statistics.data.gov.uk/id/local-authority/29UP,Tonbridge & Malling Borough Council,5/30/2023,0041035541/21,41035541, 53.11,National Westminster Bank Plc,00894500,,Charitable / Voluntary Organis,Grants & Payments to Vol Orgn,D37PACV1947005,
http://statistics.data.gov.uk/id/local-authority/29UP,Tonbridge & Malling Borough Council,5/30/2023,0041035541/22,41035541, 3.00,National Westminster Bank Plc,00894500,,Bailiffs Commission,Local Revenue & NNDR Collect,D41QA000044075,
http://statistics.data.gov.uk/id/local-authority/29UP,Tonbridge & Malling Borough Council,5/30/2023,0041035541/23,41035541, 451.06,National Westminster Bank Plc,00894500,,Transport Repair & Maintenance,Parking Off-Street,E10HA000030103,
http://statistics.data.gov.uk/id/local-authority/29UP,Tonbridge & Malling Borough Council,5/30/2023,0041035541/24,41035541, 58.00,National Westminster Bank Plc,00894500,,Transport Repair & Maintenance,Parking Off-Street,E10HA000030103,
http://statistics.data.gov.uk/id/local-authority/29UP,Tonbridge & Malling Borough Council,5/30/2023,0041035541/25,41035541, 87.00,National Westminster Bank Plc,00894500,,Transport Repair & Maintenance,Parking On-Street,E10HD000030103,
http://statistics.data.gov.uk/id/local-authority/29UP,Tonbridge & Malling Borough Council,5/30/2023,0041035541/26,41035541, 15.27,National Westminster Bank Plc,00894500,,Other Expenses,Food & Safety - Food Safety,H35SX000048010,
http://statistics.data.gov.uk/id/local-authority/29UP,Tonbridge & Malling Borough Council,5/30/2023,0041035541/27,41035541, 38.37,National Westminster Bank Plc,00894500,,Sales,TIC Stock Account,K18AX000002002,
http://statistics.data.gov.uk/id/local-authority/29UP,Tonbridge & Malling Borough Council,5/30/2023,0041035541/28,41035541, 83.91,National Westminster Bank Plc,00894500,,Sales,TIC Stock Account,K18AX000002002,
http://statistics.data.gov.uk/id/local-authority/29UP,Tonbridge & Malling Borough Council,5/30/2023,0041035541/29,41035541, 44.75,National Westminster Bank Plc,00894500,,Sales,TIC Stock Account,K18AX000002002,
http://statistics.data.gov.uk/id/local-authority/29UP,Tonbridge & Malling Borough Council,5/30/2023,0041035541/3,41035541, 322.50,National Westminster Bank Plc,00894500,,Vehicle Licences,Patrolling,B22LF000030105,
http://statistics.data.gov.uk/id/local-authority/29UP,Tonbridge & Malling Borough Council,5/30/2023,0041035541/30,41035541, 37.03,National Westminster Bank Plc,00894500,,Sales,TIC Stock Account,K18AX000002002,
http://statistics.data.gov.uk/id/local-authority/29UP,Tonbridge & Malling Borough Council,5/30/2023,0041035541/4,41035541, 116.58,National Westminster Bank Plc,00894500,,Purchases,Tonbridge Castle Gatehouse,B40TG000040101,
http://statistics.data.gov.uk/id/local-authority/29UP,Tonbridge & Malling Borough Council,5/30/2023,0041035541/5,41035541, 674.10,National Westminster Bank Plc,00894500,,Temporary Accommodation,Homelessness,C01AA000044051,
http://statistics.data.gov.uk/id/local-authority/29UP,Tonbridge & Malling Borough Council,5/30/2023,0041035541/6,41035541, 110.00,National Westminster Bank Plc,00894500,,Ext Fees/Prof & Tech,Training,D10DCDV0113561,
http://statistics.data.gov.uk/id/local-authority/29UP,Tonbridge & Malling Borough Council,5/30/2023,0041035541/7,41035541, 110.00,National Westminster Bank Plc,00894500,,Ext Fees/Prof & Tech,Training,D10DCDV0113561,
http://statistics.data.gov.uk/id/local-authority/29UP,Tonbridge & Malling Borough Council,5/30/2023,0041035541/8,41035541, 110.00,National Westminster Bank Plc,00894500,,Ext Fees/Prof & Tech,Training,D10DCDV0113561,
http://statistics.data.gov.uk/id/local-authority/29UP,Tonbridge & Malling Borough Council,5/30/2023,0041035541/9,41035541, 405.00,National Westminster Bank Plc,00894500,,Ext Fees/Prof & Tech,Training,D10DCDV0313561,
http://statistics.data.gov.uk/id/local-authority/29UP,Tonbridge & Malling Borough Council,5/31/2023,0011046174/1,11046174, 639.84,KCS Education/CSG Global Education Ltd,01897200,408845925,Cleaning & Domestic Supplies,Cleaning & Security,D21FD000026001,110070236
http://statistics.data.gov.uk/id/local-authority/29UP,Tonbridge & Malling Borough Council,5/31/2023,0011046174/2,11046174, 43.96,KCS Education/CSG Global Education Ltd,01897200,408845925,Cleaning & Domestic Supplies,Cleaning & Security,D21FD000026001,110070236
http://statistics.data.gov.uk/id/local-authority/29UP,Tonbridge & Malling Borough Council,5/31/2023,0011046183/3,11046183, 595.00,J & M Support Services (K Sports),00161300,,Rents,Conduct of Elections,D31MG000022001,
http://statistics.data.gov.uk/id/local-authority/29UP,Tonbridge & Malling Borough Council,5/31/2023,0011046185/3,11046185, 89.07,Network Rail,00871700,,Rents,Licences - Fee Paying,H27SH000022001,
http://statistics.data.gov.uk/id/local-authority/29UP,Tonbridge & Malling Borough Council,5/31/2023,0011046186/3,11046186, 1217.80,Sellick Partnership Group Limited,01336800,,Temporary Staff,Legal Sals&Overheads,D01ARDR0011300,
http://statistics.data.gov.uk/id/local-authority/29UP,Tonbridge & Malling Borough Council,5/31/2023,0011046187/3,11046187, 2100.00,Royal Mail,00086200,,Postages - Business Reply,Electoral Registration,D31MF000045003,
http://statistics.data.gov.uk/id/local-authority/29UP,Tonbridge & Malling Borough Council,5/31/2023,0011046187/4,11046187, 7.74,Royal Mail,00086200,,Purchases,Business Reply Stock Account,K14AT000001002,
http://statistics.data.gov.uk/id/local-authority/29UP,Tonbridge & Malling Borough Council,5/31/2023,0011046188/3,11046188, 1022.96,The Oyster Partnership,01196400,,Temporary Staff,Admin & Prop Sals&Overheads,D01AADA1111300,
http://statistics.data.gov.uk/id/local-authority/29UP,Tonbridge & Malling Borough Council,5/31/2023,0011046189/3,11046189, 290.00,G C Industrial Heating Services,00578100,,BRREP Response - General,Tonbridge Farm Pavillion,M15HGP50001997,
http://statistics.data.gov.uk/id/local-authority/29UP,Tonbridge & Malling Borough Council,5/31/2023,0011046190/3,11046190, 280.00,G C Industrial Heating Services,00578100,,BRREP Servicing - boilers,Angel Centre,M15HAP20001929,
http://statistics.data.gov.uk/id/local-authority/29UP,Tonbridge & Malling Borough Council,5/31/2023,0011046191/3,11046191, 360.00,G C Industrial Heating Services,00578100,,BRREP Plant renewals,Larkfield Leisure Centre,M15HDP20001909,
http://statistics.data.gov.uk/id/local-authority/29UP,Tonbridge & Malling Borough Council,5/31/2023,0011046192/3,11046192, 287.14,Royal Mail,00086200,,Postages - Business Reply,Electoral Registration,D31MF000045003,
http://statistics.data.gov.uk/id/local-authority/29UP,Tonbridge & Malling Borough Council,5/31/2023,0011046192/4,11046192, 15.08,Royal Mail,00086200,,Purchases,Business Reply Stock Account,K14AT000001002,
http://statistics.data.gov.uk/id/local-authority/29UP,Tonbridge & Malling Borough Council,5/31/2023,0011046193/3,11046193, 2351.24,Royal Mail,00086200,,Purchases,Mailsort Stock Account,K37BR000001002,
http://statistics.data.gov.uk/id/local-authority/29UP,Tonbridge & Malling Borough Council,5/31/2023,0011046193/4,11046193, 4.20,Royal Mail,00086200,,Purchases,Mailsort Stock Account,K37BR000001002,
http://statistics.data.gov.uk/id/local-authority/29UP,Tonbridge & Malling Borough Council,5/31/2023,0011046193/5,11046193, 37.35,Royal Mail,00086200,,Purchases,Mailsort Stock Account,K37BR000001002,
http://statistics.data.gov.uk/id/local-authority/29UP,Tonbridge & Malling Borough Council,5/31/2023,0011046194/3,11046194, 5065.28,KCS - KCC,00054200,,Gas,Buildings,D21FEDD1021003,
http://statistics.data.gov.uk/id/local-authority/29UP,Tonbridge & Malling Borough Council,5/31/2023,0011046195/3,11046195, 1786.27,KCS - KCC,00054200,,Gas,Buildings,D21FEDD6021003,
http://statistics.data.gov.uk/id/local-authority/29UP,Tonbridge & Malling Borough Council,5/31/2023,0011046196/3,11046196, 5626.91,KCS - KCC,00054200,,Electricity,Buildings,D21FEDD1021002,
http://statistics.data.gov.uk/id/local-authority/29UP,Tonbridge & Malling Borough Council,5/31/2023,0011046197/3,11046197, 4460.38,KCS - KCC,00054200,,Electricity,Buildings,D21FEDD5021002,
http://statistics.data.gov.uk/id/local-authority/29UP,Tonbridge & Malling Borough Council,5/31/2023,0011046198/3,11046198, 2849.74,KCS - KCC,00054200,,Electricity,Buildings,D21FEDD6021002,
http://statistics.data.gov.uk/id/local-authority/29UP,Tonbridge & Malling Borough Council,5/31/2023,0011046202/1,11046202, 853.50,Wouldham All Saints C of E Primary Schoo,01717900,,Rents,Conduct of Elections,D31MG000022001,
http://statistics.data.gov.uk/id/local-authority/29UP,Tonbridge & Malling Borough Council,5/31/2023,0011046204/1,11046204, 352.00,BML Building Services Ltd,01505000,,BRREP Window/door repairs,Tonbridge Castle / CAB,M15KFP20001919,110070174
http://statistics.data.gov.uk/id/local-authority/29UP,Tonbridge & Malling Borough Council,5/31/2023,0011046205/1,11046205, 500.00,BML Building Services Ltd,01505000,,BRREP Gutter Cleaning,Gibson Building West,M15KBP20001947,110070206
http://statistics.data.gov.uk/id/local-authority/29UP,Tonbridge & Malling Borough Council,5/31/2023,0011046206/1,11046206, 1092.06,Chillmech Limited,00978700,,BRREP Servicing-Air Condition,Angel Centre,M15HAP20001935,110070215
http://statistics.data.gov.uk/id/local-authority/29UP,Tonbridge & Malling Borough Council,5/31/2023,0011046208/1,11046208, 2309.46,Broadwater Technologies,01534500,,BRREP Servicing - pool plant,Tonbridge Swimming Pool,M15HBP20001910,110069588
http://statistics.data.gov.uk/id/local-authority/29UP,Tonbridge & Malling Borough Council,5/31/2023,0011046209/1,11046209, 188.00,Chillmech Limited,00978700,,BRREP Servicing-Air Condition,Angel Centre,M15HAP20001935,110070211
http://statistics.data.gov.uk/id/local-authority/29UP,Tonbridge & Malling Borough Council,5/31/2023,0011046210/1,11046210, 75.00,GreenFish Consulting part of JCML Consul,01627700,,Repairs & Mtce to Buildings,Homelessness,C01AATNHS20101,110070237
http://statistics.data.gov.uk/id/local-authority/29UP,Tonbridge & Malling Borough Council,5/31/2023,0011046211/1,11046211, 350.00,G C Industrial Heating Services,00578100,,BRREP Servicing - boilers,Tonbridge Farm Pavillion,M15HGP20001929,110070219
http://statistics.data.gov.uk/id/local-authority/29UP,Tonbridge & Malling Borough Council,5/31/2023,0011046212/1,11046212, 335.00,G C Industrial Heating Services,00578100,,BRREP Servicing - boilers,Gibson Building East,M15KGP20001929,110070220
http://statistics.data.gov.uk/id/local-authority/29UP,Tonbridge & Malling Borough Council,5/31/2023,0011046213/1,11046213, 743.00,G C Industrial Heating Services,00578100,,BRREP Servicing - boilers,Angel Centre,M15HAP20001929,110070222
http://statistics.data.gov.uk/id/local-authority/29UP,Tonbridge & Malling Borough Council,5/31/2023,0011046214/1,11046214, 1089.00,G C Industrial Heating Services,00578100,,BRREP Servicing - boilers,Gibson Building West,M15KBP20001929,110070223
http://statistics.data.gov.uk/id/local-authority/29UP,Tonbridge & Malling Borough Council,5/31/2023,0011046215/1,11046215, 500.00,G C Industrial Heating Services,00578100,,BRREP Servicing - Heating Syst,Leis Man Poult Wood Golf Centr,M15HEP20001934,110070224
http://statistics.data.gov.uk/id/local-authority/29UP,Tonbridge & Malling Borough Council,5/31/2023,0011046216/1,11046216, 19.20,Edmundson Electrical Ltd,01210900,,Purchases,Cleaning & Security,D21FDDD1040101,110069987
http://statistics.data.gov.uk/id/local-authority/29UP,Tonbridge & Malling Borough Council,5/31/2023,0011046217/1,11046217, 64.22,Edmundson Electrical Ltd,01210900,,Cleaning & Domestic Supplies,Cleaning & Security,D21FD000026001,110070040
http://statistics.data.gov.uk/id/local-authority/29UP,Tonbridge & Malling Borough Council,5/31/2023,0011046217/2,11046217, 71.41,Edmundson Electrical Ltd,01210900,,Cleaning & Domestic Supplies,Cleaning & Security,D21FD000026001,110070040
http://statistics.data.gov.uk/id/local-authority/29UP,Tonbridge & Malling Borough Council,5/31/2023,0011046218/1,11046218, 696.73,Security & Electronic Solutions Ltd,01379500,,BRREP Servicing - CCTV,Larkfield Leisure Centre,M15HDP20001952,110069646
http://statistics.data.gov.uk/id/local-authority/29UP,Tonbridge & Malling Borough Council,5/31/2023,0011046219/1,11046219, 696.73,Security & Electronic Solutions Ltd,01379500,,BRREP Servicing - CCTV,Tonbridge Swimming Pool,M15HBP20001952,110069647
http://statistics.data.gov.uk/id/local-authority/29UP,Tonbridge & Malling Borough Council,5/31/2023,0011046220/1,11046220, 380.31,Security & Electronic Solutions Ltd,01379500,,BRREP Servicing - CCTV,Angel Centre,M15HAP20001952,110069648
http://statistics.data.gov.uk/id/local-authority/29UP,Tonbridge & Malling Borough Council,5/31/2023,0011046221/1,11046221, 550.00,G C Industrial Heating Services,00578100,,BRREP Servicing - pool plant,Larkfield Leisure Centre,M15HDP20001910,110070247
http://statistics.data.gov.uk/id/local-authority/29UP,Tonbridge & Malling Borough Council,5/31/2023,0011046222/1,11046222, 337.40,Dalesauna Ltd,00026800,,BRREP Plant renewals,Larkfield Leisure Centre,M15HDP20001909,110070248
http://statistics.data.gov.uk/id/local-authority/29UP,Tonbridge & Malling Borough Council,5/31/2023,0011046223/1,11046223, 2000.00,Bracketts,00703500,,Professional Fees,Land Review,D40PS000044001,110070242
http://statistics.data.gov.uk/id/local-authority/29UP,Tonbridge & Malling Borough Council,5/31/2023,0011046224/3,11046224, 178.20,KCS Education/CSG Global Education Ltd,01897200,408845925,Cleaning & Domestic Supplies,Cleaning & Security,D21FD000026001,
http://statistics.data.gov.uk/id/local-authority/29UP,Tonbridge & Malling Borough Council,5/31/2023,0011046225/1,11046225, 240.00,G C Industrial Heating Services,00578100,,BRREP Servicing - Heating Syst,Gibson Building West,M15KBP20001934,110070245
http://statistics.data.gov.uk/id/local-authority/29UP,Tonbridge & Malling Borough Council,5/31/2023,0011046226/1,11046226, 2676.00,Glow Dry Cleaners,01732000,,Economic Development & Regen,Eco Dev & Reg Gen Bus Support,D52TD000047027,
http://statistics.data.gov.uk/id/local-authority/29UP,Tonbridge & Malling Borough Council,5/31/2023,0011046227/1,11046227, 720.00,Mulliner Chiropractic Limited t/a Woodla,01901100,,Economic Development & Regen,Eco Dev & Reg Gen Bus Support,D52TD000047027,
http://statistics.data.gov.uk/id/local-authority/29UP,Tonbridge & Malling Borough Council,5/31/2023,0011046228/3,11046228, 76.20,Sideways Media,01836200,,Marketing,Information & Publicity,D32MJ000044215,
http://statistics.data.gov.uk/id/local-authority/29UP,Tonbridge & Malling Borough Council,5/31/2023,0012008746/1,12008746, 3396.60,Phoenix Software Ltd,00077400,755349015,Software Hire & Support,Information Technology,D27KD000044059,410032409
http://statistics.data.gov.uk/id/local-authority/29UP,Tonbridge & Malling Borough Council,5/31/2023,0012008746/10,12008746, 2058.00,Phoenix Software Ltd,00077400,755349015,Software Hire & Support,Information Technology,D27KD000044059,410032409
http://statistics.data.gov.uk/id/local-authority/29UP,Tonbridge & Malling Borough Council,5/31/2023,0012008746/11,12008746, 717.60,Phoenix Software Ltd,00077400,755349015,Software Hire & Support,Information Technology,D27KD000044059,410032409
http://statistics.data.gov.uk/id/local-authority/29UP,Tonbridge & Malling Borough Council,5/31/2023,0012008746/2,12008746, 897.00,Phoenix Software Ltd,00077400,755349015,Software Hire & Support,Information Technology,D27KD000044059,410032409
http://statistics.data.gov.uk/id/local-authority/29UP,Tonbridge & Malling Borough Council,5/31/2023,0012008746/3,12008746, 1612.80,Phoenix Software Ltd,00077400,755349015,Software Hire & Support,Information Technology,D27KD000044059,410032409
http://statistics.data.gov.uk/id/local-authority/29UP,Tonbridge & Malling Borough Council,5/31/2023,0012008746/4,12008746, 1476.00,Phoenix Software Ltd,00077400,755349015,Software Hire & Support,Information Technology,D27KD000044059,410032409
http://statistics.data.gov.uk/id/local-authority/29UP,Tonbridge & Malling Borough Council,5/31/2023,0012008746/5,12008746, 90.00,Phoenix Software Ltd,00077400,755349015,Software Hire & Support,Information Technology,D27KD000044059,410032409
http://statistics.data.gov.uk/id/local-authority/29UP,Tonbridge & Malling Borough Council,5/31/2023,0012008746/6,12008746, 67.20,Phoenix Software Ltd,00077400,755349015,Software Hire & Support,Information Technology,D27KD000044059,410032409
http://statistics.data.gov.uk/id/local-authority/29UP,Tonbridge & Malling Borough Council,5/31/2023,0012008746/7,12008746, 8773.92,Phoenix Software Ltd,00077400,755349015,Software Hire & Support,Information Technology,D27KD000044059,410032409
http://statistics.data.gov.uk/id/local-authority/29UP,Tonbridge & Malling Borough Council,5/31/2023,0012008746/8,12008746, 1449.00,Phoenix Software Ltd,00077400,755349015,Software Hire & Support,Information Technology,D27KD000044059,410032409
http://statistics.data.gov.uk/id/local-authority/29UP,Tonbridge & Malling Borough Council,5/31/2023,0012008746/9,12008746, 91663.20,Phoenix Software Ltd,00077400,755349015,Software Hire & Support,Information Technology,D27KD000044059,410032409
http://statistics.data.gov.uk/id/local-authority/29UP,Tonbridge & Malling Borough Council,5/31/2023,0012008747/3,12008747, 1.03,KCS - KCC,00054200,,Copy Charges,Multi Function Devices,D22GB000040125,
http://statistics.data.gov.uk/id/local-authority/29UP,Tonbridge & Malling Borough Council,5/31/2023,0012008747/4,12008747, 71.43,KCS - KCC,00054200,,Leasing Charges,Multi Function Devices,D22GB000044038,
http://statistics.data.gov.uk/id/local-authority/29UP,Tonbridge & Malling Borough Council,5/31/2023,0012008748/3,12008748, 7.32,KCS - KCC,00054200,,Copy Charges,Multi Function Devices,D22GB000040125,
http://statistics.data.gov.uk/id/local-authority/29UP,Tonbridge & Malling Borough Council,5/31/2023,0012008748/4,12008748, 76.10,KCS - KCC,00054200,,Leasing Charges,Multi Function Devices,D22GB000044038,
http://statistics.data.gov.uk/id/local-authority/29UP,Tonbridge & Malling Borough Council,5/31/2023,0021038580/1,21038580, 40.00,Weddle and Co,00714900,,Maintenance of Grounds,Open Spaces & Amenity Areas,B22LE000020402,210057235
http://statistics.data.gov.uk/id/local-authority/29UP,Tonbridge & Malling Borough Council,5/31/2023,0021038581/1,21038581, 220.00,Weddle and Co,00714900,,Maintenance of Grounds,Haysden Country Park,B22LC000020402,210057229
http://statistics.data.gov.uk/id/local-authority/29UP,Tonbridge & Malling Borough Council,5/31/2023,0021038582/1,21038582, 285.00,Weddle and Co,00714900,,Maintenance of Grounds,Haysden Country Park,B22LC000020402,310043042
http://statistics.data.gov.uk/id/local-authority/29UP,Tonbridge & Malling Borough Council,5/31/2023,0021038582/2,21038582, 215.00,Weddle and Co,00714900,,Maintenance of Grounds,Haysden Country Park,B22LC000020402,310043042
http://statistics.data.gov.uk/id/local-authority/29UP,Tonbridge & Malling Borough Council,5/31/2023,0021038583/1,21038583, 6360.00,JJ Martin (Catering Appliance Superstore,01884700,179505141,Initial Furniture & Equipment,Capital Renewals Leisure,P05KGBC0309906,210057217
http://statistics.data.gov.uk/id/local-authority/29UP,Tonbridge & Malling Borough Council,5/31/2023,0021038584/1,21038584, 325.00,Flash Mobile Welding Services Ltd,01189200,,Maintenance of Play Equipment,Open Spaces & Amenity Areas,B22LE000020503,210057237
http://statistics.data.gov.uk/id/local-authority/29UP,Tonbridge & Malling Borough Council,5/31/2023,0021038586/1,21038586, 15309.00,Craemer UK LTD,01616400,,Initial Furniture & Equipment,Refuse Bins Growth/Replacement,P02DA000009906,220003339
http://statistics.data.gov.uk/id/local-authority/29UP,Tonbridge & Malling Borough Council,5/31/2023,0021038587/1,21038587, 1527.89,Broxap Ltd,00312300,,Income,LLCP Facility Improv,P05FF000009907,210057169
http://statistics.data.gov.uk/id/local-authority/29UP,Tonbridge & Malling Borough Council,5/31/2023,0021038587/2,21038587, 1028.00,Broxap Ltd,00312300,,Income,LLCP Facility Improv,P05FF000009907,210057169
http://statistics.data.gov.uk/id/local-authority/29UP,Tonbridge & Malling Borough Council,5/31/2023,0021038587/3,21038587, 151.11,Broxap Ltd,00312300,,Income,LLCP Facility Improv,P05FF000009907,210057169
http://statistics.data.gov.uk/id/local-authority/29UP,Tonbridge & Malling Borough Council,5/31/2023,0021038588/3,21038588, 63.22,B&Q/Screwfix Direct(TradeUKAccount),00141300,,Purchases,Open Spaces & Amenity Areas,B22LE000040101,
http://statistics.data.gov.uk/id/local-authority/29UP,Tonbridge & Malling Borough Council,5/31/2023,0021038589/1,21038589, 984.59,Landscape Services Ltd,00057600,,Maintenance of Grounds,Cemetery,B26MP000020402,210057222
http://statistics.data.gov.uk/id/local-authority/29UP,Tonbridge & Malling Borough Council,5/31/2023,0021038590/1,21038590, 27.11,Lower Medway Internal Drainage Board,00059900,,Payments to Drainage Boards,Drainage Boards Levies,D44QT000024004,
http://statistics.data.gov.uk/id/local-authority/29UP,Tonbridge & Malling Borough Council,5/31/2023,0022027789/1,22027789, 19049.35,Consultants in Care Ltd,01764200,,Temporary Accommodation,Homelessness,C01AAMAUN44051,
http://statistics.data.gov.uk/id/local-authority/29UP,Tonbridge & Malling Borough Council,5/31/2023,0022027790/3,22027790, 490.00,Countrystyle Group,00835900,781981681,Collection of Card,Dry Recycling,H34SR000054008,
http://statistics.data.gov.uk/id/local-authority/29UP,Tonbridge & Malling Borough Council,5/31/2023,0022027791/1,22027791, 109.90,Klipspringer Thermometers,01058600,,Health General,Food & Safety - Food Safety,H35SX000044049,220003347
http://statistics.data.gov.uk/id/local-authority/29UP,Tonbridge & Malling Borough Council,5/31/2023,0031019474/3,31019474, 21.65,B&Q/Screwfix Direct(TradeUKAccount),00141300,,Purchases,Boro Highways & Emergency Oper,E01AA000040101,
http://statistics.data.gov.uk/id/local-authority/29UP,Tonbridge & Malling Borough Council,5/31/2023,0031019475/3,31019475, 1116.00,Citiguard Security (UK) Ltd,01872100,200436269,Professional Fees,Parking Off-Street,E10HA000044001,
http://statistics.data.gov.uk/id/local-authority/29UP,Tonbridge & Malling Borough Council,5/31/2023,0031019477/1,31019477, 500.00,Traffic Enforcement Centre,00604200,,Adjudication & Enforcement Ser,Parking Off-Street,E10HA000044230,
http://statistics.data.gov.uk/id/local-authority/29UP,Tonbridge & Malling Borough Council,5/31/2023,0031019477/2,31019477, 500.00,Traffic Enforcement Centre,00604200,,Adjudication & Enforcement Ser,Parking On-Street,E10HD000044230,
http://statistics.data.gov.uk/id/local-authority/29UP,Tonbridge & Malling Borough Council,5/31/2023,0031019478/1,31019478, 553.07,SKF Contractors Ltd,00092000,,Premises Repairs & Maintenance,Parking On-Street,E10HD000020601,210057239
http://statistics.data.gov.uk/id/local-authority/29UP,Tonbridge & Malling Borough Council,5/31/2023,0031019479/3,31019479, 1758.73,PSR Lighting & Signs Ltd,01265400,,Payment re Prev Yrs Cred Acc,Sundry Creditors SSLTS,J80TL000001101,
http://statistics.data.gov.uk/id/local-authority/29UP,Tonbridge & Malling Borough Council,5/31/2023,0031019480/1,31019480, 275.00,Archway Highway Services Ltd,01398000,,Premises Repairs & Maintenance,Parking Off-Street,E10HAE00620601,310043055
http://statistics.data.gov.uk/id/local-authority/29UP,Tonbridge & Malling Borough Council,5/31/2023,0032010235/1,32010235, 139.23,KM Media Group Ltd,00053900,,Advertising General,Development Management,A01ABZ99944216,320003508
http://statistics.data.gov.uk/id/local-authority/29UP,Tonbridge & Malling Borough Council,5/31/2023,0032010236/1,32010236, 149.94,KM Media Group Ltd,00053900,,Advertising General,Development Management,A01ABZ99944216,320003507
http://statistics.data.gov.uk/id/local-authority/29UP,Tonbridge & Malling Borough Council,5/31/2023,0032010237/1,32010237, 192.78,KM Media Group Ltd,00053900,,Advertising General,Development Management,A01ABZ99944216,320003506
http://statistics.data.gov.uk/id/local-authority/29UP,Tonbridge & Malling Borough Council,5/31/2023,0032010238/3,32010238, 1247.00,Carrington West Limited,01844500,,Temporary Staff,Planning Sals&Overheads,D01AJDJ0111300,
http://statistics.data.gov.uk/id/local-authority/29UP,Tonbridge & Malling Borough Council,5/31/2023,0032010239/3,32010239, 1914.75,Carrington West Limited,01844500,,Temporary Staff,Planning Sals&Overheads,D01AJDJ0111300,
http://statistics.data.gov.uk/id/local-authority/29UP,Tonbridge & Malling Borough Council,5/31/2023,0032010242/1,32010242, 200.00,P K Saunders Electrical Ltd,01900800,,Competent Persons Schemes,Building Control,A01AD000048116,
http://statistics.data.gov.uk/id/local-authority/29UP,Tonbridge & Malling Borough Council,5/31/2023,0032010244/3,32010244, 2286.25,Hays Specialist Recruitment Limited,01879200,773695871,Temporary Staff,Planning Sals&Overheads,D01AJDJ0111300,
http://statistics.data.gov.uk/id/local-authority/29UP,Tonbridge & Malling Borough Council,5/31/2023,0032010245/3,32010245, 2109.00,Vivid Resourcing,01773700,,Temporary Staff,Planning Sals&Overheads,D01AJDJ0111300,
http://statistics.data.gov.uk/id/local-authority/29UP,Tonbridge & Malling Borough Council,5/31/2023,0032010246/3,32010246, 1713.35,The Oyster Partnership,01196400,,Temporary Staff,Planning Sals&Overheads,D01AJDJ0111300,
http://statistics.data.gov.uk/id/local-authority/29UP,Tonbridge & Malling Borough Council,5/31/2023,0032010247/3,32010247, 1596.00,The Oyster Partnership,01196400,,Temporary Staff,Planning Sals&Overheads,D01AJDJ0111300,
http://statistics.data.gov.uk/id/local-authority/29UP,Tonbridge & Malling Borough Council,5/31/2023,0032010248/3,32010248, 2315.75,Hays Specialist Recruitment Limited,01879200,773695871,Temporary Staff,Planning Sals&Overheads,D01AJDJ0111300,
http://statistics.data.gov.uk/id/local-authority/29UP,Tonbridge & Malling Borough Council,5/31/2023,0032010249/3,32010249, 2250.00,G2 Recruitment Solutions,01786000,,Temporary Staff,Planning Sals&Overheads,D01AJDJ0111300,
http://statistics.data.gov.uk/id/local-authority/29UP,Tonbridge & Malling Borough Council,5/31/2023,0032010250/1,32010250, 1451.00,East Sussex County Council,00846700,,AONB Management,Planning Policy,A01AF000044163,320003513
http://statistics.data.gov.uk/id/local-authority/29UP,Tonbridge & Malling Borough Council,5/31/2023,0041035547/1,41035547, 1081.14,Morgan Hunt UK Ltd,01086900,,Temporary Staff,Finance Sals&Overheads,D01AFDF1111300,
http://statistics.data.gov.uk/id/local-authority/29UP,Tonbridge & Malling Borough Council,5/31/2023,0041035548/1,41035548, 3707.36,Rundle & Co Ltd,00087200,,Bailiffs Commission,Local Revenue & NNDR Collect,D41QA000044075,
http://statistics.data.gov.uk/id/local-authority/29UP,Tonbridge & Malling Borough Council,5/31/2023,0041035548/3,41035548, 75.00,Rundle & Co Ltd,00087200,,Bailiffs Commission,Local Revenue & NNDR Collect,D41QA000044075,
